Cogmind - Beta 16.1 @@@ ROGUE MODE // 2026.02.08 @ 12:45:09 Player: McSaucyNugget Result: Escaped singularity! Performance ------------- Evolutions (9) 4500 Regions Visited (29) 5800 Robots Destroyed (355) 1775 Value Destroyed (19772) 19772 Prototype IDs (393) 7860 Alien Tech Used (7) 1400 Bonus (53904) 53904 TOTAL SCORE: 95011 Bonus ------- High Alert Combat Kills 4339 Follower Combat Kills 3800 Hunted by Unchained 1000 Destroyed Unchained 1000 Registered with UFD 300 Met Optimus in HQ 500 Met Data Miner 300 Met Zhirov 300 Met Warlord at Base 500 MAIN.C Attacked Warlord 500 Warlord Defense Kills 916 Used Core Reset Matrix 3000 Scanned by Researcher 500 Destroyed MAIN.C Guards 500 Met MAIN.C 5000 Destroyed MAIN.C Shell 5000 Destroyed MAIN.C 10000 Met Architect 300 Destroyed A8 300 Destroyed A6 400 Destroyed A5 500 Destroyed Architect 15000 Win 3000 Friendly Fire -3051 Cogmind --------- Core Integrity 844/1600 Matter 240/300 Energy 97/100 System Corruption 0% Temperature Cool (0) Movement Core (50) Location Near Former Tau Ceti IV Parts ------- > --- POWER (3) -------- (None) > --- PROPULSION (7) --- (None) > --- UTILITY (14) ----- (None) > --- WEAPON (2) ------- (None) > --- INVENTORY (5) ---- High-density Centrium Heavy Treads Perforator Peak State ------------ > --- POWER ------------ Light Quantum Reactor Concept Zero-point Core Concept Zero-point Core > --- PROPULSION ------- Experimental Antigrav System Gravjet Array Gravjet Array Gravjet Array > --- UTILITY ---------- Concept Antigrav Storage Unit V4-D3R's Forcewell Concept Dimensional Manipulator Experimental Active Sensor Suite Concept Core Analysis Suite Quantum Capacitor Concept Cloak Mesh SHELL Armor Concept Network Penetrator Concept Network Penetrator > --- WEAPON ----------- V4-D3R's Forcegen V4-D3R's Sabre > --- INVENTORY -------- Quantum Reactor Light Quantum Reactor Light Quantum Reactor Light Quantum Reactor Gravjet Array Concept Phasing Heat Sink Concept Thermoelectric Network Concept Chromion Battery Concept NT7 Matterbank Concept Weapon Articulator Concept Core Analysis Suite Femtoactuators Experimental Force Field Concept Antimissile System Transdimensional Reconstructor Vortex Shotgun Vortex Shotgun Concept Disintegration Ray Concept Plasma Driver Concept Plasma Driver Concept Plasma Driver Concept Helical Railcannon Ragnarok Missile Launcher [Rating: 305] Favorites ----------- Power Concept Zero-point Core Engine Ion Engine Power Core Concept Zero-point Core Reactor Light Antimatter Reactor Propulsion Light Treads Treads Light Treads Leg High-density Centrium Leg Hover Unit Antigrav System Utility High-capacity Storage Unit Device Amulet of Y3-NDR Storage High-capacity Storage Unit Processor Concept Core Analysis Suite Hackware Advanced Hacking Suite Protection Enhanced Scrap Shield Weapon Battle Rifle Energy Gun Gamma Rifle Energy Cannon Concept Plasma Driver Ballistic Gun Battle Rifle Ballistic Cannon Hypervelocity Mass Driver Launcher Smartbomb Launcher Special Weapon Plasma Flamer Slashing Weapon Makeshift Sword Piercing Weapon Enhanced Force Lance Build | -11 -10 -10 -8 -8 -6 -6 -6 -6 -5 -5 -5 -5 -5 -4 -4 -4 -4 -4 -4 -4 -3 -3 -3 -3 -2 -2 -1 -1 -1 ------- Run | Yrd Mat Sub Rec Scr Fac Low Low Dat Pro Fac Upp Upp War Pro Fac Was Fac Upp Upp Zhi Pro Res Qua Frg Res Tes Acc Com Ac0 Slots Evolved 18 | . . . . . 8 . . . . 2 . . . . 2 . . . . . . 2 . . 2 . 2 . . Power 2 | . . . . . 1 . . . . . . . . . . . . . . . . . . . 1 . . . . Propulsion 5 | . . . . . 3 . . . . 1 . . . . 1 . . . . . . . . . . . . . . Utility 11 | . . . . . 4 . . . . 1 . . . . 1 . . . . . . 2 . . 1 . 2 . . Weapon . | . . . . . . . . . . . . . . . . . . . . . . . . . . . . . . Parts Attached 263 | 6 9 6 3 14 14 8 9 . 3 21 4 3 12 3 12 . 7 1 . 1 . 13 8 60 5 4 2 31 4 Power 23 | 1 . . . 2 . 1 2 . . 1 2 . 2 . . . 2 . . . . . 2 6 1 . . 1 . Engine 2 | 1 . . . 1 . . . . . . . . . . . . . . . . . . . . . . . . . Core 7 | . . . . 1 . 1 1 . . . 1 . . . . . . . . . . . . 3 . . . . . Reactor 14 | . . . . . . . 1 . . 1 1 . 2 . . . 2 . . . . . 2 3 1 . . 1 . Propulsion 60 | 2 . . 2 4 2 1 1 . 1 8 1 1 2 3 6 . . . . . . 1 2 9 . . . 13 1 Treads 13 | 2 . . 2 2 2 1 1 . 1 1 . . . . . . . . . . . . . . . . . 1 . Leg 14 | . . . . 2 . . . . . . . . . . . . . . . . . . . . . . . 11 1 Wheel . | . . . . . . . . . . . . . . . . . . . . . . . . . . . . . . Hover 33 | . . . . . . . . . . 7 1 1 2 3 6 . . . . . . 1 2 9 . . . 1 . Flight . | . . . . . . . . . . . . . . . . . . . . . . . . . . . . . . Utility 107 | 1 4 2 1 2 6 3 5 . . 7 1 . 5 . 5 . 5 1 . 1 . 6 3 28 2 2 2 13 2 Device 55 | . . 2 . . 6 1 5 . . 2 1 . 4 . . . 3 . . . . 3 2 11 2 1 1 10 1 Storage 10 | 1 1 . . . . . . . . 1 . . . . 1 . 1 . . . . . 1 3 . 1 . . . Processor 10 | . 1 . . . . 1 . . . 1 . . 1 . . . . 1 . . . 1 . 3 . . . 1 . Hackware 12 | . . . . . . . . . . 3 . . . . 4 . 1 . . . . 2 . 2 . . . . . Protection 20 | . 2 . 1 2 . 1 . . . . . . . . . . . . . 1 . . . 9 . . 1 2 1 Artifact . | . . . . . . . . . . . . . . . . . . . . . . . . . . . . . . Weapon 73 | 2 5 4 . 6 6 3 1 . 2 5 . 2 3 . 1 . . . . . . 6 1 17 2 2 . 4 1 Energy Gun 11 | . . . . 1 . . . . . . . . 2 . . . . . . . . 1 . 7 . . . . . Energy Cannon 14 | . . . . . 2 . 1 . . . . . 1 . . . . . . . . 5 1 3 1 . . . . Ballistic Gun 12 | 2 1 3 . 1 2 1 . . . 1 . . . . . . . . . . . . . . . . . 1 . Ballistic Cannon 13 | . 2 . . 2 . . . . 1 2 . 1 . . . . . . . . . . . 2 1 . . 1 1 Launcher 5 | . 1 . . . 2 . . . . . . . . . 1 . . . . . . . . . . . . 1 . Special Weapon 8 | . 1 . . 2 . 2 . . 1 1 . . . . . . . . . . . . . . . 1 . . . Impact Weapon . | . . . . . . . . . . . . . . . . . . . . . . . . . . . . . . Slashing Weapon 7 | . . 1 . . . . . . . 1 . 1 . . . . . . . . . . . 3 . 1 . . . Piercing Weapon 3 | . . . . . . . . . . . . . . . . . . . . . . . . 2 . . . 1 . Special Melee Weapon . | . . . . . . . . . . . . . . . . . . . . . . . . . . . . . . Unidentified Prototypes 22 | . . 1 . . 1 2 2 . . 3 . . 8 . 1 . . . . 2 . . 1 . . . . 1 . Parts Lost 17 | . 2 . . . . . . . . . . . . . 1 . . . . . . 1 . 8 . . . 2 3 Power . | . . . . . . . . . . . . . . . . . . . . . . . . . . . . . . Propulsion 2 | . . . . . . . . . . . . . . . . . . . . . . . . 1 . . . 1 . Utility 7 | . 1 . . . . . . . . . . . . . 1 . . . . . . 1 . 2 . . . . 2 Weapon 8 | . 1 . . . . . . . . . . . . . . . . . . . . . . 5 . . . 1 1 Highest Loss Streak 2 | . 1 . . . . . . . . . . . . . 1 . . . . . . 1 . 1 . . . 2 1 To Critical Strikes 1 | . . . . . . . . . . . . . . . . . . . . . . . . 1 . . . . . Average Backups 17 | 1 10 18 18 17 17 19 18 19 18 15 8 10 9 9 9 8 11 13 13 14 13 13 13 19 17 23 22 21 21 Power 1 | . 1 1 1 . . 1 . 1 1 . . 1 . . . . . 1 1 1 1 1 1 1 . . 3 1 1 Propulsion 3 | . 4 6 7 4 2 3 3 3 3 2 . 1 . . . . 1 1 1 1 1 1 2 1 1 1 1 2 3 Utility 6 | . 1 4 5 4 8 7 8 9 8 6 3 4 4 5 4 5 5 5 6 6 6 5 4 8 9 11 9 8 10 Weapon 4 | . 3 5 4 4 3 4 3 4 3 4 3 3 3 4 3 3 4 5 5 5 4 4 4 6 6 8 8 7 6 Tool/Special . | . . . . . . . . . . . . . . . . . . . . . . . . . . . . . . Unused Backups 114 | . . 5 . 16 3 6 5 . 3 11 1 . 2 . 2 . . . . 1 1 5 4 18 . 6 . 13 12 Power 19 | . . . . 2 . . 1 . . 1 1 . 1 . . . . . . . 1 . 1 3 . . . 6 2 Propulsion 20 | . . 2 . 4 . 2 1 . 2 3 . . . . . . . . . . . . 1 . . . . 3 2 Utility 53 | . . . . 7 3 3 3 . 1 3 . . 1 . 2 . . . . 1 . 3 2 9 . 3 . 4 8 Weapon 20 | . . 3 . 1 . 1 . . . 4 . . . . . . . . . . . 2 . 6 . 3 . . . Tool/Special 2 | . . . . 2 . . . . . . . . . . . . . . . . . . . . . . . . . Average Slot Usage (%) 89 | . 99 99 100 88 95 92 93 81 93 89 90 94 93 94 92 90 86 81 82 82 84 88 87 82 80 76 72 80 83 Engine 3 | . 14 14 14 3 6 . . . . . . . . . . . . . . . . . . . . . . . . Core 4 | . . . . 9 5 11 7 6 6 3 1 . . . . . . . . . . . . 2 8 8 7 7 7 Reactor 2 | . . . . . . . 4 6 6 5 6 11 10 11 10 10 10 10 10 10 10 9 9 5 2 1 3 3 3 Treads 15 | . 28 28 28 23 29 31 31 31 31 . . . . . . . . . . . . . . . . . . . 2 Leg 3 | . . . . 4 2 . . . . . . . . . . . . . . . . . . . . . . 14 19 Hover 7 | . . . . . . . . . . 29 33 33 32 33 33 30 30 30 30 30 30 27 23 18 16 16 15 4 . Device 12 | . . 5 . . 21 18 18 18 18 16 16 16 15 16 10 10 9 21 20 16 15 12 13 16 16 15 17 25 22 Storage 8 | . 14 14 14 13 6 6 6 6 6 4 5 5 5 5 5 5 5 5 5 5 5 4 4 4 4 4 3 3 3 Processor 4 | . . . . . . 5 6 6 6 6 11 11 11 11 9 5 5 8 10 10 10 12 13 13 12 8 4 6 7 Hackware 1 | . . . . . . . . . . 3 . . . . 9 15 15 . . . . 6 9 1 8 8 7 . . Protection 8 | . 12 8 14 13 6 6 6 6 6 5 5 5 5 5 5 5 5 5 5 7 10 7 4 10 4 4 2 4 7 Energy Cannon 1 | . . . . . . . 3 . 5 1 . . . . . . . . . . . 6 9 1 4 3 2 2 2 Ballistic Gun 8 | . 19 22 28 13 1 11 8 . . . . . . . . . . . . . . . . . . . . 1 . Ballistic Cannon 2 | . 8 1 . 3 10 . . . 1 3 4 4 4 5 4 5 2 . . . . . . 1 2 3 . . 2 Slashing Weapon 1 | . . 3 . . . . . . . 3 4 5 4 5 4 5 4 . 2 3 2 . . 1 . . 3 . . Peak Build Rating 305 | 7 11 18 16 29 51 72 80 73 79 112 106 107 123 123 140 139 143 148 146 141 148 168 166 269 279 287 305 304 292 Average Rating 109 | 5 9 14 15 22 44 68 77 68 77 102 99 106 117 120 132 138 138 137 137 138 144 161 161 225 273 273 303 279 286 On Entrance 122 | . 7 11 14 16 24 51 72 78 73 79 97 106 106 121 118 133 139 140 135 135 141 148 161 166 258 277 279 304 289 Avg Prop Armor Cover (%) 4 | . . . . . 2 . . . . 1 1 . . . 1 . 1 1 1 . . 1 . . . . . 9 5 Naked Turns 6 | . . . . . . . . . . . . . . . . . . . . . . . . . . . . . 6 Heaviest Build 155 | 13 55 55 59 62 81 87 100 84 91 98 64 66 83 66 67 64 73 76 76 66 73 85 84 110 115 115 123 154 155 Greatest Support 254 | 40 40 40 40 44 104 112 112 112 112 140 64 66 82 70 82 94 86 97 97 85 85 100 105 109 138 138 138 254 156 Greatest Overweight (x) 2 | . 1 1 1 2 . . . . . 2 1 . 1 . . . . . . . . 1 . 1 . 1 . 2 . Average Overweight (x) . | . . 1 1 . . . . . . . . . . . . . . . . . . . . . . . . . . Largest Inventory Capacity 25 | 8 20 20 20 20 20 20 20 20 20 20 10 10 10 10 10 10 15 15 15 15 15 15 15 25 25 25 25 25 25 Average Capacity 19 | 7 18 20 20 19 20 20 20 20 20 16 10 10 10 10 10 10 13 15 15 15 15 15 15 22 25 25 25 25 24 Most Carried 25 | 5 18 20 20 20 20 20 20 20 20 20 10 10 10 10 10 10 15 15 15 15 15 15 15 25 21 25 25 25 25 Average Carried 18 | 2 11 19 20 18 18 19 19 20 19 15 8 10 9 9 9 9 12 14 14 14 14 14 14 21 18 24 23 24 24 Final Capacity 25 | 8 20 20 20 20 20 20 20 20 20 10 10 10 10 10 10 10 15 15 15 15 15 15 15 25 25 25 25 25 5 Final Carried 25 | 5 18 20 20 19 20 20 20 20 20 7 10 10 9 10 10 10 14 15 15 15 13 15 15 22 20 25 24 25 4 Class Distribution -------------------- 37% | Mutant 25% | Scavenger-Mutant 11% | Alien-Mutant 6% | Alien-Sprinter 4% | Derelict-Mutant 4% | Hacker-Sprinter 3% | Sprinter Dominant Class ---------------- Mutant | -10/Materials Mutant | -10/Subcaves Mutant | -8/Recycling Mutant | -8/Scraptown Derelict-Mutant | -6/Factory Scavenger-Mutant | -6/Lower Caves Scavenger-Mutant | -6/Lower Caves Scavenger-Mutant | -6/Data Miner Scavenger-Mutant | -5/Proximity Caves Scavenger-Mutant | -5/Factory Scavenger-Mutant | -5/Upper Caves Scavenger-Mutant | -5/Upper Caves Scavenger-Mutant | -5/Warlord Scavenger-Mutant | -4/Proximity Caves Scavenger-Mutant | -4/Factory Hacker-Sprinter | -4/Waste Hacker-Sprinter | -4/Factory Sprinter | -4/Upper Caves Sprinter | -4/Upper Caves Sprinter | -4/Zhirov Sprinter | -3/Proximity Caves Hacker-Sprinter | -3/Research Hacker-Mutant | -3/Quarantine Alien-Sprinter | -3/Protoforge Alien-Sprinter | -2/Research Wizard-Scout | -2/Testing Wizard-Ninja | -1/Access Alien-Mutant | -1/Command Alien-Mutant | -1/Access_0 Resources | -11 -10 -10 -8 -8 -6 -6 -6 -6 -5 -5 -5 -5 -5 -4 -4 -4 -4 -4 -4 -4 -3 -3 -3 -3 -2 -2 -1 -1 -1 ----------- Run | Yrd Mat Sub Rec Scr Fac Low Low Dat Pro Fac Upp Upp War Pro Fac Was Fac Upp Upp Zhi Pro Res Qua Frg Res Tes Acc Com Ac0 Matter Collected 14246 | 185 525 386 87 250 515 661 460 . 159 474 190 124 612 172 222 . 408 304 218 40 267 351 256 4338 94 475 283 888 1302 Remotely . | . . . . . . . . . . . . . . . . . . . . . . . . . . . . . . Salvage Created 20526 | . 612 96 445 35 607 513 388 . 294 1080 582 117 447 496 25 . 485 499 203 339 353 1191 328 3629 88 1805 656 3159 2054 Parts 934 | . 49 2 13 6 36 25 14 . 16 25 31 16 17 18 4 . 38 21 14 2 8 77 6 168 3 76 24 99 126 Haulers Intercepted 9 | . 1 . . . 1 . 1 . . 1 . . . . . . 1 . . . . 2 1 . . . 1 . . Recyclers Shooed 12 | . 1 . 1 . 4 . . . . 2 . . . . . . . . . . . 3 . . . . . 1 . Parts Field Recycled . | . . . . . . . . . . . . . . . . . . . . . . . . . . . . . . Retrieved Matter . | . . . . . . . . . . . . . . . . . . . . . . . . . . . . . . Parts Self-Destructed 110 | . . 6 . . . 9 17 . 18 . 14 12 . 4 . . . 9 15 2 4 . . . . . . . . Prevented 54 | . . . . . . . 6 . 7 . 3 2 . 16 . . . 5 13 . 2 . . . . . . . . Parts Restored 7 | . . . . . . . . . . . . . . . . . . . . . . . . 7 . . . . . Faulty 7 | . . . . . . . . . . . . . . . . . . . . . . . . 7 . . . . . Kills | -11 -10 -10 -8 -8 -6 -6 -6 -6 -5 -5 -5 -5 -5 -4 -4 -4 -4 -4 -4 -4 -3 -3 -3 -3 -2 -2 -1 -1 -1 ------- Run | Yrd Mat Sub Rec Scr Fac Low Low Dat Pro Fac Upp Upp War Pro Fac Was Fac Upp Upp Zhi Pro Res Qua Frg Res Tes Acc Com Ac0 Combat Hostiles Destroyed 269 | . 15 2 . . 5 8 8 . 8 5 4 5 8 3 1 . 17 11 10 . 8 16 1 58 1 27 8 15 25 Melee 17 | . . . . . . . . . . . . . . 1 . . . . . . . . . 16 . . . . . Guns 30 | . 8 1 . . 2 7 . . . . . . . . . . . . . . . 3 . 7 . . . 1 1 Cannons 87 | . 7 . . . 1 . 1 . 1 . 4 . 8 2 . . . . 1 . . 3 1 11 1 24 3 2 17 AOE 97 | . . 1 . . 2 1 7 . 7 3 . 5 . . 1 . 17 11 9 . 8 9 . 8 . . . 8 . Classes Destroyed 33 | . 8 2 . . 2 5 2 . 1 1 . . 3 1 . . . . . . . 1 . 6 . . . 1 . Worker 12 | . 1 . . . 2 . . . . . . . . . . . . . . . . 3 . 3 . . 1 2 . Builder 1 | . . . . . . . . . . . . . . . . . . . . . . 1 . . . . . . . Tunneler 1 | . . . . . . . . . . 1 . . . . . . . . . . . . . . . . . . . Hauler 9 | . 1 . . . 1 . 1 . . 1 . . . . . . 1 . . . . 2 1 . . . 1 . . Recycler 25 | . 1 . 5 . 3 . . . . 6 . . . . . . 1 . . . . 2 1 . . 1 . 5 . Minesweeper 2 | . . . . . . 1 . . . . . . . . . . . 1 . . . . . . . . . . . Mechanic 1 | . . . . . . . . . . . . . . . . . . . . . . . . 1 . . . . . Operator 6 | . 3 . . . 1 . . . . . . . . . 1 . . . . . . 1 . . . . . . . Drone 3 | . . . . . . . . . . . . . . 1 . . . . . . . . . 2 . . . . . Turret 2 | . . 2 . . . . . . . . . . . . . . . . . . . . . . . . . . . Watcher 10 | . 2 . . . 2 . . . . 1 . . . . . . 2 . . . . . . 1 . . . 2 . Swarmer 74 | . 5 1 . . 3 . 4 . 5 3 . 5 . . 1 . 17 2 7 . 2 8 . 3 . 5 . 3 . Saboteur 2 | . . . . . . . . . . . . . . . . . . . . . . . . 2 . . . . . Grunt 83 | . 9 . . . 1 4 3 . 1 2 2 . 5 2 . . . 7 1 . 6 . 1 11 . 17 6 5 . Brawler 3 | . . . . . . . . . 1 . . . . . . . . . 1 . . . . 1 . . . . . Duelist 4 | . . . . . . . . . . . . . 1 . . . . . . . . . . 3 . . . . . Protector 1 | . . . . . . . . . . . . . 1 . . . . . . . . . . . . . . . . Researcher 5 | . . . . . . 1 . . . . . . . . . . . . . . . . . 2 . 2 . . . Sentry 16 | . . . . . . 1 . . . . 1 . . . . . . . . . . 1 . 11 1 . . 1 . Specialist 1 | . . . . . . . . . . . . . 1 . . . . . . . . . . . . . . . . Hunter 5 | . . . . . 1 . . . . . . . . . . . . 2 . . . 2 . . . . . . . Programmer 22 | . . . . . 1 . . . 1 . 1 . . . . . . . 1 . . 5 . 7 . 4 2 . . Behemoth 1 | . . . . . . . 1 . . . . . . . . . . . . . . . . . . . . . . M Guard 2 | . . . . . . . . . . . . . . . . . . . . . . . . . . . . 2 . Enhanced Grunt 11 | . . . . . . . . . . . . . . . . . . . . . . . . . . . . . 11 Enhanced Sentry 2 | . . . . . . . . . . . . . . . . . . . . . . . . . . . . . 2 Enhanced Hunter 8 | . . . . . . . . . . . . . . . . . . . . . . . . . . . . . 8 Decapitator 8 | . . . . . . . . . . . . . . . . . . . . . . . . 8 . . . . . Immortal 6 | . . . . . . . . . . . . . . . . . . . . . . . . 6 . . . . . Combat Programmer 2 | . . . . . . . . . . . . . . . . . . . . . . . . . . . . 2 . Alpha 7 2 | . . . . . . . . . . . . . . . . . . . . . . . . 2 . . . . . V-Series 2 | . . . . . . . . . . . . . . . . . . . . . . . . 2 . . . . . Cobbler 1 | . . 1 . . . . . . . . . . . . . . . . . . . . . . . . . . . Subdweller 4 | . 1 1 1 1 . . . . . . . . . . . . . . . . . . . . . . . . . Decomposer 1 | . . . . . . 1 . . . . . . . . . . . . . . . . . . . . . . . Packrat 5 | . . . . . . . . . . . 2 . . 3 . . . . . . . . . . . . . . . Samaritan 2 | . . . . . . . 1 . . . . . . . . . . 1 . . . . . . . . . . . Tinkerer 1 | . . . . . . . . . . . . . . . . . . . . . . . . 1 . . . . . Assembled 3 | . . . . . . . . . . . . . . . . . . . . . . . . . . . . 3 . Wizard 8 | . . . . . . . . . 1 . 2 1 . 2 . . 2 . . . . . . . . . . . . Fireman 2 | . . . . . . 2 . . . . . . . . . . . . . . . . . . . . . . . Mutant 2 | . . . . . . 1 . . . . 1 . . . . . . . . . . . . . . . . . . Best Kill Streak 15 | . 4 3 1 . 5 3 3 . 5 3 2 5 4 2 1 . 14 7 7 . 4 6 1 8 1 15 5 12 3 Combat Bots Only 15 | . 4 1 . . 2 3 3 . 5 3 2 5 4 2 1 . 7 7 7 . 4 5 1 8 1 15 5 9 3 Max Kills in Single Turn 7 | . 2 1 2 1 3 1 2 . 5 2 1 3 1 2 1 . 7 2 3 . 3 3 1 3 1 1 2 5 2 Gunslinging . | . . . . . . . . . . . . . . . . . . . . . . . . . . . . . . Exploded 5 | . . 1 . . 2 1 2 . 5 2 . 3 . . 1 . 5 2 3 . 3 3 . 2 . . . 3 . Melee 1 | . . . . . . . . . . . . . . 1 . . . . . . . . . 1 . . . . . Uniques/NPCs Destroyed 7 | . . . . . . . . . . . . . . . . . . . . . . . . . . 1 . 2 4 V4-D3R (-2/Testing) MAIN.C Shell (-1/Command) MAIN.C (-1/Command) A8 (-1/Access_0) A6 (-1/Access_0) A5 (-1/Access_0) Architect (-1/Access_0) Combat | -11 -10 -10 -8 -8 -6 -6 -6 -6 -5 -5 -5 -5 -5 -4 -4 -4 -4 -4 -4 -4 -3 -3 -3 -3 -2 -2 -1 -1 -1 -------- Run | Yrd Mat Sub Rec Scr Fac Low Low Dat Pro Fac Upp Upp War Pro Fac Was Fac Upp Upp Zhi Pro Res Qua Frg Res Tes Acc Com Ac0 Hostile Shots Fired 1459 | . 57 47 . . 28 53 28 . 7 7 2 . 12 4 12 . 18 6 . . 4 108 6 405 11 33 28 67 516 Missed 705 | . 13 22 . . 10 21 9 . . 2 . . 4 3 8 . 9 2 . . 3 64 4 167 3 13 16 19 313 Deflected 19 | . . . . . . . . . . . . . . . . . . . . . . . . . . . 6 13 . Hits 754 | . 44 25 . . 18 32 19 . 7 5 2 . 8 1 4 . 9 4 . . 1 44 2 238 8 20 12 48 203 Melee 15 | . . . . . . . . . . . . . . . . . . . . . . . . 6 . 3 . . 6 Projectile 739 | . 44 25 . . 18 32 19 . 7 5 2 . 8 1 4 . 9 4 . . 1 44 2 232 8 17 12 48 197 Critical Strikes 46 | . . . . . 1 3 . . 2 . . . 1 . . . 1 . . . . 2 . 11 . . 1 3 21 Actively Blocked 7 | . . . . . . . . . . . . . . . . . . . . . . 1 . 4 . . . . 2 Part Disruptions 7 | . . . . . . . . . . . . . . . . . . . . . . . . 1 . . . 3 3 Actively Blocked 3 | . . . . . . . . . . . . . . . . . . . . . . . . . . . . . 3 Damage Taken 13820 | . 517 384 . . 381 266 175 . 209 274 48 . 221 18 104 . 132 104 . . 46 1002 40 5048 94 574 150 826 3207 Core 1386 | . 57 91 . . 46 . 11 . 20 45 . . 34 . . . 30 22 . . . 22 . 404 . 56 . 156 392 Absorbed by Shields 4912 | . . . . . 39 266 101 . . 18 . . . . . . . . . . . . . 761 29 . . 677 3021 Reduced by Siege Mode 14 | . . . . . . . . . . . . . . . . . . . . . . . . . . . . . 14 Redirected to Shielding 413 | . . . . . . . . . . . . . . . . . . . . . . 124 . 120 . . . . 169 Ignored by Resistances 251 | . . . . . . . . . . . . . . . . . . . . . . . . 50 . 74 7 58 62 Regen/Repaired (Parts) 2708 | . . . . 388 . . . . . . . . . . . . . . . . . . . 586 40 329 132 441 792 Core Remaining (%) 79 | 100 . . . 40 . . . . 90 . . . . 92 . . . . . . 95 . . 67 . 96 . . 52 Volleys Fired 1158 | 1 59 24 8 2 51 51 27 . 12 37 10 7 40 14 2 . 8 14 13 . 13 109 20 179 7 92 40 112 206 Largest 2 | 2 2 2 2 1 2 2 2 . 2 1 1 1 1 1 1 . 1 1 1 . 1 2 1 2 2 2 1 1 2 Hottest 210 | 40 100 60 55 . 113 85 115 . 185 100 85 56 56 56 46 . 46 46 56 . 46 199 113 150 190 210 140 140 198 Shots Fired 1401 | 2 115 39 16 2 86 98 47 . 20 37 10 7 40 14 2 . 9 14 13 . 13 115 19 221 9 94 40 111 208 Gun 482 | 2 73 28 16 . 17 93 27 . . . . . . . . . . . . . . 8 . 126 . . . 64 28 Cannon 775 | . 41 3 . . 65 1 13 . 13 23 10 4 39 14 . . 1 . 5 . . 97 19 89 9 93 25 43 168 Launcher 96 | . . 8 . . 4 2 7 . 4 3 . 3 . . 2 . 8 14 8 . 13 10 . 6 . . . 4 . Special 48 | . 1 . . 2 . 2 . . 3 11 . . 1 . . . . . . . . . . . . 1 15 . 12 Kinetic 541 | 2 114 31 16 . 67 93 27 . . 10 9 4 39 14 . . 1 . 5 . . . . 48 2 6 . 36 17 Thermal 494 | . 1 . . . 8 1 13 . 12 20 1 . . . . . . . . . . 79 14 35 7 87 25 40 151 Explosive 96 | . . 8 . . 4 2 7 . 4 3 . 3 . . 2 . 8 14 8 . 13 10 . 6 . . . 4 . Electromagnetic 166 | . . . . . 7 . . . 4 4 . . . . . . . . . . . 18 5 128 . . . . . Entropic 71 | . . . . . . . . . . . . . . . . . . . . . . 8 . 4 . . . 31 28 Robot Hit Streak 28 | 1 11 8 10 2 9 8 7 . 2 15 5 1 8 5 . . 1 . 6 . . 6 6 19 2 23 16 27 28 Robot Miss Streak 7 | 1 3 1 1 . 6 2 2 . 7 1 2 1 2 1 . . 1 . . . . 4 2 2 1 1 1 3 4 Penetration Max 2 | . . . . . 1 1 1 . . . 1 1 2 1 . . . . . . . . . 2 . 1 . 1 1 Secondary Targets 2 | . 1 . . . . 1 . . . . . . . . . . . . . . . . . . . . . . . Max Gunslinging Chain 1 | . 1 . . . . 1 . . . . . . . . . . . . . . . . . . . . . . . Capacitor 354 | . . . . . . . . . . . . . . . . . . . . . . . . . . 81 25 71 177 Shots Hit Robots 932 | 1 67 30 11 5 52 39 34 . 5 41 10 1 31 18 2 . 6 1 5 4 . 30 8 208 2 49 21 93 158 Core Hits 678 | . 32 13 7 1 31 29 21 . 14 15 7 7 12 6 1 . 24 34 15 3 27 45 3 119 2 26 12 71 101 Critical Kills 54 | . . . . . . . . . . . 5 1 7 4 . . . . 1 . . . 1 2 . 3 . 8 22 Critical Parts Destroyed 41 | . 1 . 1 . . 1 . . . 5 1 1 14 2 . . . . 4 . . . . . . . . 5 6 Critical Strikes 151 | . 2 2 1 . 1 1 . . . 6 6 2 23 6 . . . . 5 . . . 1 42 . 3 . 19 31 Burn 1 | . . . . . . . . . . 1 . . . . . . . . . . . . . . . . . . . Meltdown 19 | . . . . . . . . . . . . . . . . . . . . . . . 1 2 . 3 . 6 7 Destroy 88 | . 1 1 1 . . 1 . . . 5 6 2 23 6 . . . . 5 . . . . . . . . 13 24 Blast 8 | . 1 1 . . 1 . . . . . . . . . . . . . . . . . . 5 . . . . . Corrupt 1 | . . . . . . . . . . . . . . . . . . . . . . . . 1 . . . . . Sever 34 | . . . . . . . . . . . . . . . . . . . . . . . . 34 . . . . . Melee Attacks 215 | . . 22 . 3 . . . . . 40 6 2 4 9 7 . 13 1 1 4 . . . 85 . 6 . 12 . Impact . | . . . . . . . . . . . . . . . . . . . . . . . . . . . . . . Slashing 210 | . . 22 . 3 . . . . . 40 6 2 4 9 7 . 13 1 1 4 . . . 81 . 6 . 11 . Piercing 5 | . . . . . . . . . . . . . . . . . . . . . . . . 4 . . . 1 . Sneak Attacks 36 | . . 1 . 3 . . . . . 7 4 . 4 4 2 . 3 1 . . . . . 7 . . . . . Combat Hostiles 1 | . . . . . . . . . . . . . . 1 . . . . . . . . . . . . . . . Follow-up Attacks 1 | . . . . . . . . . . . . . . . . . . . . . . . . . . . . 1 . Damage Inflicted 58921 | 13 1052 669 198 216 1708 1700 1924 . 777 1673 529 386 935 650 302 . 2240 2443 1130 364 1585 3124 330 11255 103 4501 713 7979 10422 Guns 9713 | 13 670 436 198 . 312 1381 459 . . . . . . . . . . . . . . 247 . 2708 . . . 1853 1436 Cannons 25509 | . 366 30 . . 850 . 386 . 115 297 168 72 635 219 . . . . 110 . . 956 330 4662 103 4501 640 2083 8986 Explosions 16134 | . . 203 . . 546 319 1079 . 647 255 . 314 . . 130 . 1936 2358 1020 . 1585 1921 . 1392 . . 73 2356 . Melee 7422 | . . . . 216 . . . . . 1009 361 . 300 431 172 . 304 85 . 364 . . . 2493 . . . 1687 . Ramming 16 | . 16 . . . . . . . . . . . . . . . . . . . . . . . . . . . . Kinetic 10726 | 13 1036 466 198 . 881 1381 459 . . 175 168 72 635 219 . . . . 110 . . . . 4049 63 128 . 526 147 Thermal 17651 | . . . . . 78 . 386 . 130 112 . . . . . . 23 274 . . . 393 110 410 40 4373 640 1843 8839 Explosive 15837 | . . 203 . . 546 319 1079 . 647 255 . 314 . . 130 . 1913 2084 1020 . 1585 1921 . 1392 . . 73 2356 . Electromagnetic 3833 | . . . . . 203 . . . . 122 . . . . . . . . . . . 563 220 2725 . . . . . Impact . | . . . . . . . . . . . . . . . . . . . . . . . . . . . . . . Slashing 7098 | . . . . 216 . . . . . 1009 361 . 300 431 172 . 304 85 . 364 . . . 2261 . . . 1595 . Piercing 324 | . . . . . . . . . . . . . . . . . . . . . . . . 232 . . . 92 . Entropic 3436 | . . . . . . . . . . . . . . . . . . . . . . 247 . 186 . . . 1567 1436 Highest Corruption 18 | . . . . . . 1 1 1 1 1 1 1 1 . 1 6 6 5 . . . 3 3 18 . . . 1 . Average Corruption 3 | . . . . . . 1 1 1 1 1 1 1 1 . 1 2 5 2 . . . 2 3 9 . . . 1 . Corruption Purged 7 | . . . . . . . . . . . . . . . . . 1 5 . . . . . . . . . 1 . Corruption Blocked . | . . . . . . . . . . . . . . . . . . . . . . . . . . . . . . Effects 120 | . . . . . . 6 15 1 5 4 2 4 1 . . 1 11 . . . . 1 5 63 . . . 1 . Message Errors 31 | . . . . . . 1 6 . 1 1 . . 1 . . . 4 . . . . 1 . 16 . . . . . Matter Fused 26 | . . . . . . 3 6 . 1 . 1 1 . . . . 4 . . . . . . 10 . . . . . Heat Flow Errors 10 | . . . . . . . . . . 2 . . . . . . . . . . . . 1 7 . . . . . Energy Discharges 13 | . . . . . . 1 1 . 1 . 1 1 . . . . . . . . . . 2 6 . . . . . Parts Rejected 2 | . . . . . . . . . . . . . . . . . . . . . . . 1 1 . . . . . Parts Fused 2 | . . . . . . . . . . . . 1 . . . 1 . . . . . . . . . . . . . Data Loss (minor) 13 | . . . . . . 1 1 1 . . . 1 . . . . 2 . . . . . . 7 . . . . . Data Loss (major) 4 | . . . . . . . 1 . . 1 . . . . . . . . . . . . . 2 . . . . . Misfires 7 | . . . . . . . . . 1 . . . . . . . 1 . . . . . . 5 . . . . . Alerts 1 | . . . . . . . . . 1 . . . . . . . . . . . . . . . . . . . . Misdirections 3 | . . . . . . . . . . . . . . . . . . . . . . . . 3 . . . . . Weapon Failures 8 | . . . . . . . . . . . . . . . . . . . . . . . 1 6 . . . 1 . Overload Shots 1 | . . . . . . . . . . . . . . . . . . . . . . . . 1 . . . . . Overflow Damage 3107 | . 2 . . . 37 . 56 . 12 146 119 . . 189 122 . 135 31 117 90 59 146 6 382 . 557 82 736 83 Projectiles 1396 | . 2 . . . . . 22 . 1 . . . . . . . . . . . . 30 6 339 . 557 82 274 83 Explosions 885 | . . . . . 37 . 34 . 11 31 . . . . . . 135 31 117 . 59 116 . 38 . . . 276 . Melee 826 | . . . . . . . . . . 115 119 . . 189 122 . . . . 90 . . . 5 . . . 186 . Knockbacks 35 | . 5 . . . 5 . . . . 1 1 1 2 . . . . . . . . . . 13 . . . 2 5 Impact . | . . . . . . . . . . . . . . . . . . . . . . . . . . . . . . Kinetic 34 | . 5 . . . 5 . . . . 1 1 1 2 . . . . . . . . . . 12 . . . 2 5 Secondary 1 | . . . . . . . . . . . . . . . . . . . . . . . . 1 . . . . . Self-Inflicted Damage 295 | . . . . . 84 . . . . . . . . . 35 . . 35 . . 29 34 . 78 . . . . . Shots 8 | . . . . . 2 . . . . . . . . . 1 . . 1 . . 2 1 . 1 . . . . . Rammed 2 | . 2 . . . . . . . . . . . . . . . . . . . . . . . . . . . . Targets Rammed 2 | . 2 . . . . . . . . . . . . . . . . . . . . . . . . . . . . Kicked . | . . . . . . . . . . . . . . . . . . . . . . . . . . . . . . Crushed . | . . . . . . . . . . . . . . . . . . . . . . . . . . . . . . Highest Temperature 372 | . 73 . 33 . 213 62 318 . 366 356 117 57 113 11 304 4 34 5 12 . . 144 182 238 3 372 276 276 183 Average Temperature 63 | . 26 . 15 . 68 23 106 . 131 71 30 19 45 6 74 4 5 4 8 . . 37 69 100 2 119 97 94 112 Received Heat Transfer 1483 | . 156 114 . . 91 106 24 . 66 47 9 . 75 9 . . . . . . 9 48 21 633 4 36 9 8 18 Thermoelectric Energy+ 1349 | . . . . . . . . . . . . . . . . . . . . . . . . . . . . 73 1276 Effects 7 | . . . . . . . . . . 5 . . . . . . . . . . . . . . . 2 . . . Energy Bleed 3 | . . . . . . . . . . 1 . . . . . . . . . . . . . . . 2 . . . Interference 4 | . . . . . . . . . . 4 . . . . . . . . . . . . . . . . . . . Siege Activations 1 | . . . . . . . . . . . . . . . . . . . . . . . . . . . . . 1 Total Turns 19 | . . . . . . . . . . . . . . . . . . . . . . . . . . . . . 19 Longest Duration 19 | . . . . . . . . . . . . . . . . . . . . . . . . . . . . . 19 Martial Activations . | . . . . . . . . . . . . . . . . . . . . . . . . . . . . . . Shielding Activations 1 | . . . . . . . . . . . . . . . . . . . . . . . . . . . . . 1 Total Turns 13 | . . . . . . . . . . . . . . . . . . . . . . . . . . . . . 13 Longest Duration 13 | . . . . . . . . . . . . . . . . . . . . . . . . . . . . . 13 Robots Disrupted . | . . . . . . . . . . . . . . . . . . . . . . . . . . . . . . Combat Hostiles . | . . . . . . . . . . . . . . . . . . . . . . . . . . . . . . Robots Corrupted 18 | . . . . . . . . . . . . . . . . . . . . . . 2 1 14 . . 1 . . Combat Hostiles 16 | . . . . . . . . . . . . . . . . . . . . . . 1 . 14 . . 1 . . Parts Fried 40 | . . . . . . . . . . 1 . . 1 . . . . . . . . 2 3 30 . . 3 . . Impact Corruptions 3 | . . . . . . . . . . . . . . . . . . . . . . . . . . . 1 . 2 Robots Melted 21 | . . . . . . . . . . 2 . . . . . . . . . . . . 1 2 . 3 . 6 7 Combat Hostiles 18 | . . . . . . . . . . 2 . . . . . . . . . . . . . 2 . 3 . 4 7 Parts Melted 22 | . . . . . 1 . 1 . 1 1 . . . . . . . . . . . 1 . 4 . 8 . 2 3 Heat Transferred 8276 | . . . . . 74 . 444 . 191 825 . . . . . . 50 240 . . . 370 111 250 37 2360 350 899 2075 Parts Sabotaged 3 | . . . . . . . . . . . . . . . . . . . . . . . . 3 . . . . . Parts Stolen . | . . . . . . . . . . . . . . . . . . . . . . . . . . . . . . Parts Stripped . | . . . . . . . . . . . . . . . . . . . . . . . . . . . . . . Power Chain Reactions . | . . . . . . . . . . . . . . . . . . . . . . . . . . . . . . Alert | -11 -10 -10 -8 -8 -6 -6 -6 -6 -5 -5 -5 -5 -5 -4 -4 -4 -4 -4 -4 -4 -3 -3 -3 -3 -2 -2 -1 -1 -1 ------- Run | Yrd Mat Sub Rec Scr Fac Low Low Dat Pro Fac Upp Upp War Pro Fac Was Fac Upp Upp Zhi Pro Res Qua Frg Res Tes Acc Com Ac0 Maximum Alert Level 5 | . 1 . . . 1 . . . . 2 . . . . 1 . 3 . . . . 4 3 5 3 2 3 4 . Low Security (%) 30 | 100 89 . 100 . 73 . . . . . . . . . 73 100 32 . . . . 12 . . 76 29 . . . Level 1 12 | . 10 . . . 26 . . . . 17 . . . . 26 . 14 . . . . 24 . 12 10 64 18 . . Level 2 13 | . . . . . . . . . . 82 . . . . . . 8 . . . . 34 22 17 . 6 49 1 . Level 3 8 | . . . . . . . . . . . . . . . . . 43 . . . . 13 77 31 13 . 32 . . Level 4 32 | . . . . . . . . . . . . . . . . . . . . . . 14 . 24 . . . 98 . Level 5 2 | . . . . . . . . . . . . . . . . . . . . . . . . 13 . . . . . High Security . | . . . . . . . . . . . . . . . . . . . . . . . . . . . . . . Max Security . | . . . . . . . . . . . . . . . . . . . . . . . . . . . . . . Peak Influence 1793 | . 256 . 86 . 272 . . . . 617 . . . . 403 12 1005 . . . . 1371 779 1793 848 586 900 1370 . Initial 848 | . . . . . . . . . . 327 . . . . 180 12 1 . . . . 209 771 243 848 108 351 569 . Average 424 | . 65 . 15 . 76 . . . . 487 . . . . 192 11 494 . . . . 609 694 988 168 244 594 1073 . Influence Increases 16468 | . 475 112 326 . 590 203 425 . 449 1010 210 227 377 220 687 . 1391 550 409 21 431 1912 112 2283 226 858 669 1368 927 Destroy 0b10 Robot/C 6780 | . 280 80 80 . 300 160 300 . 280 240 140 140 200 140 240 . 600 380 240 . 280 600 20 1160 20 220 160 520 . Destroy 0b10 Robot/NC 525 | . 40 . 25 . 45 5 5 . 10 75 . . 5 10 5 . 25 5 . 15 . 80 10 55 . 5 10 95 . Destroy Leader 934 | . 66 . . . 66 20 30 . 40 58 20 20 . . 60 . 96 40 50 . 30 108 2 92 10 30 22 74 . Allied During Kill 1616 | . . 2 30 . 73 18 60 . 104 115 50 67 22 40 58 . 194 110 119 6 121 107 . . . . . 320 . Successful Hack 239 | . 24 . 9 . 20 . . . . 4 . . . . 21 . 38 . . . . 99 12 . . . 12 . . Select Force Hacks 240 | . 60 . 180 . . . . . . . . . . . . . . . . . . . . . . . . . . Disable Machine 870 | . . . . . 45 . . . . 75 . . . . 15 . 60 . . . . 60 60 285 . 135 15 75 45 Anti-Garrison Action 150 | . . . . . . . . . . . . . . . . . . . . . . . . 150 . . . . . Destroy Structure 2599 | . 5 . 2 . 41 . . . . 128 . . . . 78 . 258 . . . . 408 8 166 36 253 150 184 882 Advance Influence 450 | . . . . . . . . . . 300 . . . . 150 . . . . . . . . . . . . . . Partial Spotted 150 | . . . . . . . . . . . . . . . 30 . 15 . . . . 30 . 75 . . . . . Lose Combat Pursuer 1215 | . . 30 . . . . 30 . 15 15 . . 150 30 30 . 105 15 . . . 420 . 300 60 15 . . . Active Sensor Use 700 | . . . . . . . . . . . . . . . . . . . . . . . . . 100 200 300 100 . Influence Decreases 15567 | . 240 347 326 . 335 458 406 19 405 587 388 185 618 262 698 35 568 556 306 942 121 852 1050 1208 1540 466 365 1011 1273 Entered New Map 5765 | . . 114 . . . 95 . 19 . 17 174 55 331 90 18 25 1 306 156 922 1 102 600 190 660 86 235 321 1247 Time Decay 5851 | . 220 213 325 . 220 363 326 . 345 470 214 130 226 152 190 10 167 170 130 20 120 410 140 638 32 380 130 110 . Lost Part 166 | . 20 . . . . . . . . . . . . . 10 . . . . . . 10 . 80 . . . 20 26 Lost Ally 1512 | . . 20 1 . 40 . 80 . 60 100 . . 61 20 180 . 100 80 20 . . 180 10 . . . . 560 . Purge Threat 2273 | . . . . . 75 . . . . . . . . . 300 . 300 . . . . 150 300 300 848 . . . . Squads Dispatched 73 | . 4 . . . 5 . . . . 5 . . . . 4 . 4 . . . . 13 1 18 1 7 8 3 . Investigation 18 | . 2 . . . . . . . . . . . . . 2 . 1 . . . . 3 . 2 1 2 3 2 . Extermination 18 | . . . . . 2 . . . . 2 . . . . . . . . . . . 5 1 3 . 3 1 1 . Reinforcement 18 | . 2 . . . 3 . . . . 2 . . . . 2 . . . . . . 3 . 2 . 2 2 . . Assault 17 | . . . . . . . . . . . . . . . . . 2 . . . . 2 . 11 . . 2 . . Garrison 2 | . . . . . . . . . . 1 . . . . . . 1 . . . . . . . . . . . . Intercept . | . . . . . . . . . . . . . . . . . . . . . . . . . . . . . . Searches Triggered . | . . . . . . . . . . . . . . . . . . . . . . . . . . . . . . Unchained Authorized 1 | . . . . . . . . . . . . . . . . . . . . . . . . . . 1 . . . Data Miner Redirects 2 | . . . . . . . . . . . . . . . . . . . . . . . . 2 . . . . . Construction Impeded 3 | . . . . . . . . . . . . . . . . . . . . . . 1 . . . 1 1 . . Haulers Reinforced 6 | . . . . . 2 . . . . 1 . . . . . . . . . . . 2 . . . . 1 . . Active Scanning Responses 7 | . . . . . . . . . . . . . . . . . . . . . . . . . 1 2 3 1 . Cargo Convoy Interrupts . | . . . . . . . . . . . . . . . . . . . . . . . . . . . . . . Stealth | -11 -10 -10 -8 -8 -6 -6 -6 -6 -5 -5 -5 -5 -5 -4 -4 -4 -4 -4 -4 -4 -3 -3 -3 -3 -2 -2 -1 -1 -1 --------- Run | Yrd Mat Sub Rec Scr Fac Low Low Dat Pro Fac Upp Upp War Pro Fac Was Fac Upp Upp Zhi Pro Res Qua Frg Res Tes Acc Com Ac0 Distress Signals 33 | . 3 . . . . . . . . 1 . . . . . . 5 . . . . 7 . . 2 . . 15 . Communications Jammed 23 | . . . . . 11 . . . . 1 . . . . . . . . . . . . 3 8 . . . . . Distress Signals 22 | . . . . . 11 . . . . . . . . . . . . . . . . . 3 8 . . . . . Times Spotted 564 | . 24 17 . . 20 12 14 . 13 23 7 5 48 8 11 4 31 13 4 . 6 69 4 115 5 34 8 14 55 Peak Tracking Total 15 | . 3 3 . . 3 4 5 . 5 5 4 3 10 5 7 4 10 5 3 . 5 14 1 9 6 15 5 7 4 Tactical Retreats 42 | . . 1 . . . . 1 . 1 1 . . 7 1 2 . 4 1 . . . 10 . 8 1 4 . . . Traps | -11 -10 -10 -8 -8 -6 -6 -6 -6 -5 -5 -5 -5 -5 -4 -4 -4 -4 -4 -4 -4 -3 -3 -3 -3 -2 -2 -1 -1 -1 ------- Run | Yrd Mat Sub Rec Scr Fac Low Low Dat Pro Fac Upp Upp War Pro Fac Was Fac Upp Upp Zhi Pro Res Qua Frg Res Tes Acc Com Ac0 Traps Triggered 20 | . . 3 . . . . . . . 2 . . . . 1 . . . . . . . . 9 1 2 . 2 . Indirectly . | . . . . . . . . . . . . . . . . . . . . . . . . . . . . . . Trap Hack Attempts . | . . . . . . . . . . . . . . . . . . . . . . . . . . . . . . Triggered . | . . . . . . . . . . . . . . . . . . . . . . . . . . . . . . Disarmed . | . . . . . . . . . . . . . . . . . . . . . . . . . . . . . . Reprogrammed . | . . . . . . . . . . . . . . . . . . . . . . . . . . . . . . Reused . | . . . . . . . . . . . . . . . . . . . . . . . . . . . . . . Traps Extracted . | . . . . . . . . . . . . . . . . . . . . . . . . . . . . . . Installed . | . . . . . . . . . . . . . . . . . . . . . . . . . . . . . . Triggered . | . . . . . . . . . . . . . . . . . . . . . . . . . . . . . . Machines | -11 -10 -10 -8 -8 -6 -6 -6 -6 -5 -5 -5 -5 -5 -4 -4 -4 -4 -4 -4 -4 -3 -3 -3 -3 -2 -2 -1 -1 -1 ---------- Run | Yrd Mat Sub Rec Scr Fac Low Low Dat Pro Fac Upp Upp War Pro Fac Was Fac Upp Upp Zhi Pro Res Qua Frg Res Tes Acc Com Ac0 Machines Disabled 80 | . . 5 . . 3 1 . . . 5 . . 1 . 1 . 4 4 . . . 4 4 28 . 11 1 5 3 Max in Single Turn 4 | . . 2 . . 1 1 . . . 2 . . . . 1 . 4 2 . . . 1 1 2 . 1 1 1 1 Garrison Access 6 | . . . . . . . . . . 2 . . . . . . 2 . . . . . . 1 . . 1 . . Machines Repaired . | . . . . . . . . . . . . . . . . . . . . . . . . . . . . . . Machines Dismantled . | . . . . . . . . . . . . . . . . . . . . . . . . . . . . . . Machines Sabotaged . | . . . . . . . . . . . . . . . . . . . . . . . . . . . . . . Overloaded Fab Kills . | . . . . . . . . . . . . . . . . . . . . . . . . . . . . . . Hacking | -11 -10 -10 -8 -8 -6 -6 -6 -6 -5 -5 -5 -5 -5 -4 -4 -4 -4 -4 -4 -4 -3 -3 -3 -3 -2 -2 -1 -1 -1 --------- Run | Yrd Mat Sub Rec Scr Fac Low Low Dat Pro Fac Upp Upp War Pro Fac Was Fac Upp Upp Zhi Pro Res Qua Frg Res Tes Acc Com Ac0 Machines Accessed 100 | . 8 1 12 3 3 . . 4 1 4 . 1 6 . 8 . 8 . 2 4 . 9 10 5 1 5 2 3 . Terminals 47 | . 6 . 6 . 1 . . . 1 2 . . . . 3 . 3 . 1 . . 5 7 3 1 4 1 3 . Fabricators 2 | . . . . . . . . . . . . . . . 2 . . . . . . . . . . . . . . Repair Stations 5 | . . . . . . . . . . . . . . . 2 . 2 . . . . . 1 . . . . . . Recycling Units 10 | . 2 . 6 . . . . . . . . . . . . . . . . . . 2 . . . . . . . Scanalyzers 10 | . . . . . 2 . . . . . . . . . 1 . 1 . . . . 2 2 1 . 1 . . . Garrison Access 6 | . . . . . . . . . . 2 . . . . . . 2 . . . . . . 1 . . 1 . . Total Hacks 268 | . 18 1 23 14 10 . . 27 1 10 . 1 16 . 21 . 23 . 2 16 . 18 25 17 10 9 3 3 . Successful 197 | . 14 1 13 14 9 . . 27 1 4 . 1 16 . 14 . 17 . 2 16 . 10 5 8 10 9 3 3 . Failed 69 | . 4 . 10 . . . . . . 6 . . . . 7 . 6 . . . . 8 20 8 . . . . . Catastrophic 11 | . 1 . . . . . . . . . . . . . 1 . . . . . . 3 5 1 . . . . . Database Lockouts 2 | . . . . . 1 . . . . . . . . . . . . . . . . . . 1 . . . . . Manual 94 | . 14 . 21 . 3 . . . . 3 . . 1 . 5 . 5 . . . . 6 18 6 8 3 1 . . Terminals 120 | . 16 . 16 . 4 . . . 1 5 . . . . 6 . 12 . 1 . . 11 17 8 10 8 2 3 . Fabricators 8 | . . . . . . . . . . . . . . . 8 . . . . . . . . . . . . . . Repair Stations 12 | . . . . . . . . . . . . . . . 5 . 5 . . . . . 2 . . . . . . Recycling Units 11 | . 2 . 7 . . . . . . . . . . . . . . . . . . 2 . . . . . . . Scanalyzers 30 | . . . . . 6 . . . . . . . . . 2 . 4 . . . . 5 6 6 . 1 . . . Garrison Access 11 | . . . . . . . . . . 5 . . . . . . 2 . . . . . . 3 . . 1 . . Terminal Hacks 132 | . 4 1 2 14 1 . . 27 1 2 . 1 16 . 5 . 7 . 2 16 . 3 2 5 10 8 2 3 . Record 36 | . . . . 13 . . . 11 1 . . . 4 . . . 1 . 1 5 . . . . . . . . . Part Schematic 12 | . . . . . . . . 8 . . . . . . . . . . . 3 . . . . . 1 . . . Robot Schematic 5 | . . . . . . . . 5 . . . . . . . . . . . . . . . . . . . . . Robot Analysis 8 | . . . 1 . . . . . . . . . . . . . 1 . . 4 . . . . . 2 . . . Prototype ID Bank 18 | . . . . . . . . 3 . . . . 11 . . . . . . 4 . . . . . . . . . Open Door 4 | . . . . . . . . . . . . 1 1 . . . . . 1 . . . . . . . . 1 . Level Access Points 4 | . . . . . . . . . . . . . . . . . . . . . . 1 . 1 . 1 . 1 . Branch Access Points 6 | . 1 . . . . . . . . 1 . . . . 1 . 1 . . . . . . . 1 . 1 . . Machine Index 3 | . . . . . . . . . . . . . . . 1 . 1 . . . . . . . . . 1 . . Terminal Index 2 | . 1 . . . . . . . . . . . . . . . 1 . . . . . . . . . . . . Garrison Index 1 | . . . . . . . . . . . . . . . . . . . . . . 1 . . . . . . . Alert Level 1 | . . . . . . . . . . . . . . . . . . . . . . . . 1 . . . . . Unreport Threat 15 | . . . . . 1 . . . . . . . . . 2 . 1 . . . . . 2 2 7 . . . . Locate Traps 8 | . 2 . . . . . . . . 1 . . . . 1 . . . . . . . . 1 1 2 . . . Recall Investigation 2 | . . . . . . . . . . . . . . . . . . . . . . 1 . . . 1 . . . Registered Prototypes 1 | . . . . . . . . . . . . . . . . . . . . . . . . . 1 . . . . Zone Layout 3 | . . . 1 . . . . . . . . . . . . . 1 . . . . . . . . 1 . . . Proto ID Catalog 2 | . . 1 . 1 . . . . . . . . . . . . . . . . . . . . . . . . . Disengage Seal 1 | . . . . . . . . . . . . . . . . . . . . . . . . . . . . 1 . Fabricator Hacks 3 | . . . . . . . . . . . . . . . 3 . . . . . . . . . . . . . . Network Status 1 | . . . . . . . . . . . . . . . 1 . . . . . . . . . . . . . . Load Schematic 1 | . . . . . . . . . . . . . . . 1 . . . . . . . . . . . . . . Build 1 | . . . . . . . . . . . . . . . 1 . . . . . . . . . . . . . . Repair Station Hacks 4 | . . . . . . . . . . . . . . . 2 . 2 . . . . . . . . . . . . Scan Component 4 | . . . . . . . . . . . . . . . 2 . 2 . . . . . . . . . . . . Recycling Unit Hacks . | . . . . . . . . . . . . . . . . . . . . . . . . . . . . . . Scanalyzer 19 | . . . . . 6 . . . . . . . . . 2 . 4 . . . . 4 1 2 . . . . . Insert Component 4 | . . . . . 2 . . . . . . . . . 1 . 1 . . . . . . . . . . . . Analyze 5 | . . . . . 2 . . . . . . . . . 1 . 2 . . . . . . . . . . . . Retrieve Study 10 | . . . . . 2 . . . . . . . . . . . 1 . . . . 4 1 2 . . . . . Garrison Access Hacks 5 | . . . . . . . . . . 2 . . . . . . 2 . . . . . . . . . 1 . . Seal Access 5 | . . . . . . . . . . 2 . . . . . . 2 . . . . . . . . . 1 . . Unauthorized Hacks 34 | . 10 . 11 . 2 . . . . . . . . . 2 . 2 . . . . 3 2 1 . 1 . . . Terminals 20 | . 8 . 5 . 2 . . . . . . . . . . . 2 . . . . 1 1 1 . . . . . Track 1 | . . . . . 1 . . . . . . . . . . . . . . . . . . . . . . . . Assimilate 2 | . . . . . . . . . . . . . . . . . . . . . . 1 1 . . . . . . Botnet 6 | . 2 . . . 1 . . . . . . . . . . . 2 . . . . . . 1 . . . . . Skim 11 | . 6 . 5 . . . . . . . . . . . . . . . . . . . . . . . . . . Fabricators 2 | . . . . . . . . . . . . . . . 2 . . . . . . . . . . . . . . Prioritize 1 | . . . . . . . . . . . . . . . 1 . . . . . . . . . . . . . . Recompile 1 | . . . . . . . . . . . . . . . 1 . . . . . . . . . . . . . . Repair Stations . | . . . . . . . . . . . . . . . . . . . . . . . . . . . . . . Recycling Units 10 | . 2 . 6 . . . . . . . . . . . . . . . . . . 2 . . . . . . . Tunnel 8 | . 2 . 6 . . . . . . . . . . . . . . . . . . . . . . . . . . Fedlink 1 | . . . . . . . . . . . . . . . . . . . . . . 1 . . . . . . . Scrapoids 1 | . . . . . . . . . . . . . . . . . . . . . . 1 . . . . . . . Scanalyzers 2 | . . . . . . . . . . . . . . . . . . . . . . . 1 . . 1 . . . Researchers 2 | . . . . . . . . . . . . . . . . . . . . . . . 1 . . 1 . . . Garrison Access . | . . . . . . . . . . . . . . . . . . . . . . . . . . . . . . Data Cores Recovered 3 | . 1 . . . . . . . . 1 . . . . . . . . . . . 1 . . . . . . . Used . | . . . . . . . . . . . . . . . . . . . . . . . . . . . . . . Hacking Detections 57 | . 6 . 5 . 2 . . . 1 3 . . . . 7 . 6 . . . . 6 10 4 1 4 1 1 . Full Trace Events 4 | . . . . . . . . . . . . . . . 1 . 1 . . . . . . 2 . . . . . Feedback Events 2 | . . . . . . . . . . . . . . . 2 . . . . . . . . . . . . . . Corruption 1 | . . . . . . . . . . . . . . . 1 . . . . . . . . . . . . . . Hackware Fried 1 | . . . . . . . . . . . . . . . 1 . . . . . . . . . . . . . . Feedback Blocked . | . . . . . . . . . . . . . . . . . . . . . . . . . . . . . . Robot Schematics Acquired 5 | . . . . . . . . 5 . . . . . . . . . . . . . . . . . . . . . Robots Built . | . . . . . . . . . . . . . . . . . . . . . . . . . . . . . . Authchips . | . . . . . . . . . . . . . . . . . . . . . . . . . . . . . . Time . | . . . . . . . . . . . . . . . . . . . . . . . . . . . . . . Total Robot Build Rating . | . . . . . . . . . . . . . . . . . . . . . . . . . . . . . . Part Schematics Acquired 21 | . . . . . 2 . . 8 . . . . . . 1 . . . . 3 . . . 3 . 4 . . . Parts Built 1 | . . . . . . . . . . . . . . . 1 . . . . . . . . . . . . . . Authchips . | . . . . . . . . . . . . . . . . . . . . . . . . . . . . . . Time 128 | . . . . . . . . . . . . . . . 128 . . . . . . . . . . . . . . Total Part Build Rating 8 | . . . . . . . . . . . . . . . 8 . . . . . . . . . . . . . . Part Studies Acquired 10 | . . . . . 2 . . . . . . . . . . . 1 . . . . 4 1 2 . . . . . Parts Repaired . | . . . . . . . . . . . . . . . . . . . . . . . . . . . . . . Time . | . . . . . . . . . . . . . . . . . . . . . . . . . . . . . . Parts Recycled . | . . . . . . . . . . . . . . . . . . . . . . . . . . . . . . Recycled Matter . | . . . . . . . . . . . . . . . . . . . . . . . . . . . . . . Retrieved Matter . | . . . . . . . . . . . . . . . . . . . . . . . . . . . . . . Retrieved Components . | . . . . . . . . . . . . . . . . . . . . . . . . . . . . . . Parts Scanalyzed 4 | . . . . . 2 . . . . . . . . . 1 . 1 . . . . . . . . . . . . Part Schematics Acquired 3 | . . . . . 2 . . . . . . . . . 1 . . . . . . . . . . . . . . Parts Damaged . | . . . . . . . . . . . . . . . . . . . . . . . . . . . . . . Bothacking | -11 -10 -10 -8 -8 -6 -6 -6 -6 -5 -5 -5 -5 -5 -4 -4 -4 -4 -4 -4 -4 -3 -3 -3 -3 -2 -2 -1 -1 -1 ------------ Run | Yrd Mat Sub Rec Scr Fac Low Low Dat Pro Fac Upp Upp War Pro Fac Was Fac Upp Upp Zhi Pro Res Qua Frg Res Tes Acc Com Ac0 Used RIF Installer . | . . . . . . . . . . . . . . . . . . . . . . . . . . . . . . Robots Hacked . | . . . . . . . . . . . . . . . . . . . . . . . . . . . . . . Non-combat . | . . . . . . . . . . . . . . . . . . . . . . . . . . . . . . Combat . | . . . . . . . . . . . . . . . . . . . . . . . . . . . . . . Robot Hacks Applied . | . . . . . . . . . . . . . . . . . . . . . . . . . . . . . . Relay Couplers Released 3 | . . . . . . . . . . . . . . . . . . . . . . . . 3 . . . . . Machine Destruction 3 | . . . . . . . . . . . . . . . . . . . . . . . . 3 . . . . . Fabnet Peak Effective % . | . . . . . . . . . . . . . . . . . . . . . . . . . . . . . . Robots Rewired 5 | . . . . . 1 4 . . . . . . . . . . . . . . . . . . . . . . . Allies Hacked . | . . . . . . . . . . . . . . . . . . . . . . . . . . . . . . Hacks Repelled . | . . . . . . . . . . . . . . . . . . . . . . . . . . . . . . Allies | -11 -10 -10 -8 -8 -6 -6 -6 -6 -5 -5 -5 -5 -5 -4 -4 -4 -4 -4 -4 -4 -3 -3 -3 -3 -2 -2 -1 -1 -1 -------- Run | Yrd Mat Sub Rec Scr Fac Low Low Dat Pro Fac Upp Upp War Pro Fac Was Fac Upp Upp Zhi Pro Res Qua Frg Res Tes Acc Com Ac0 Total Allies 131 | . . 11 . 1 1 4 6 . 6 10 7 1 . 6 11 . 10 7 1 . 2 12 1 . . . . 34 . Largest Group 13 | . . 6 6 4 4 5 5 1 5 5 4 4 4 4 4 . 4 4 4 4 4 5 1 . . . . 13 . Highest-Rated Group 407 | . . 114 114 134 156 179 401 78 402 402 324 324 318 324 324 . 314 324 320 320 320 320 10 . . . . 407 . Highest-Rated Ally 234 | . . 19 19 77 77 77 81 78 81 81 81 81 81 81 81 . 81 81 81 81 81 81 10 . . . . 234 . Initial UFD Resources 42 | . . . . . 23 23 23 23 25 25 25 25 25 28 28 28 28 28 28 28 30 30 37 37 39 39 42 42 42 Total Orders 3 | . . . . . . . 2 1 . . . . . . . . . . . . . . . . . . . . . STAY 2 | . . . . . . . 1 1 . . . . . . . . . . . . . . . . . . . . . FOLLOW 1 | . . . . . . . 1 . . . . . . . . . . . . . . . . . . . . . . Ally Attacks 804 | . . 20 12 . 43 41 27 . 47 88 14 16 15 19 48 . 37 26 34 . 24 150 . . . . . 143 . Total Damage 23570 | . . 387 191 . 946 819 1217 . 1702 1920 709 282 499 740 1346 . 1734 1201 506 . 1043 4377 . . . . . 3951 . Kills 160 | . . 5 4 . 10 5 9 . 9 14 4 2 3 7 11 . 14 8 2 . 8 27 . . . . . 18 . Allies Corrupted 4 | . . . . . . . . . . . . . . . . . . . . . . . . . . . . 4 . Allies Melted 4 | . . . . . . 2 . . . . . . . . 1 . . . . . . 1 . . . . . . . Intel | -11 -10 -10 -8 -8 -6 -6 -6 -6 -5 -5 -5 -5 -5 -4 -4 -4 -4 -4 -4 -4 -3 -3 -3 -3 -2 -2 -1 -1 -1 ------- Run | Yrd Mat Sub Rec Scr Fac Low Low Dat Pro Fac Upp Upp War Pro Fac Was Fac Upp Upp Zhi Pro Res Qua Frg Res Tes Acc Com Ac0 Active Infowar (turns) 15848 | . . 1 . . 906 1942 1838 143 1097 1185 454 269 1008 343 392 21 380 342 272 67 246 987 290 2261 80 899 260 165 . Optics 13412 | . . 1 . . . 1730 1838 143 1097 1126 454 269 949 343 392 21 380 342 272 67 246 987 290 2261 80 124 . . . Sensors 2451 | . . . . . 149 . . . . . . . . . . . 119 342 272 67 246 668 268 319 . . . 1 . A.S.S. 1354 | . . . . . . . . . . . . . . . . . . . . . . . . . 64 891 260 139 . IFF 5332 | . . . . . . 1906 843 143 203 805 454 269 225 166 281 . 37 . . . . . . . . . . . . Seismic 1184 | . . . . . 906 36 . . . 242 . . . . . . . . . . . . . . . . . . . Cloaking 871 | . . . . . . . . . . . . . . . . . . . . . . . . 180 65 296 223 107 . Jamming 1643 | . . . . . 601 6 . . . 299 . . . . . . . . . . . . 265 472 . . . . . ECM 2 | . . . . . . . . . . . . . . . . . . . . . . . . . . . 2 . . Robot Analysis Total 7 | . . . 1 . . . . . . . . . . . . . 1 . . 4 . . . . . 1 . . . Derelict Logs Recovered 12 | . . . . 3 . 3 . . 1 . 2 . . 1 . . . . 2 . . . . . . . . . . Drone Launches . | . . . . . . . . . . . . . . . . . . . . . . . . . . . . . . Drone Recoveries . | . . . . . . . . . . . . . . . . . . . . . . . . . . . . . . Exploration | -11 -10 -10 -8 -8 -6 -6 -6 -6 -5 -5 -5 -5 -5 -4 -4 -4 -4 -4 -4 -4 -3 -3 -3 -3 -2 -2 -1 -1 -1 ------------- Run | Yrd Mat Sub Rec Scr Fac Low Low Dat Pro Fac Upp Upp War Pro Fac Was Fac Upp Upp Zhi Pro Res Qua Frg Res Tes Acc Com Ac0 Turns Passed 34795 | 87 1723 4248 1415 6288 909 1942 1838 143 1097 1185 454 269 1011 343 392 21 380 342 272 67 246 987 290 2261 80 899 260 4342 1004 Spaces Moved 28101 | 50 619 1654 574 2754 462 1132 883 92 675 1109 769 603 1410 727 896 73 726 681 770 159 569 1763 596 2979 154 768 537 3366 551 Core 16 | 7 . . . . . . . . . . . . . . . . . . . . . . . . . . . . 9 Treads 8373 | 43 619 1654 574 2226 462 1132 883 92 675 13 . . . . . . . . . . . . . . . . . . . Legs 3355 | . . . . 528 . . . . . . . . . . . . . . . . . . . . . . . 2285 542 Wheels . | . . . . . . . . . . . . . . . . . . . . . . . . . . . . . . Hover 16357 | . . . . . . . . . . 1096 769 603 1410 727 896 73 726 681 770 159 569 1763 596 2979 154 768 537 1081 . Flight . | . . . . . . . . . . . . . . . . . . . . . . . . . . . . . . Fastest Speed 18 | 50 160 240 240 145 150 154 154 154 154 38 38 38 27 36 20 18 24 18 18 26 26 22 27 28 33 33 33 33 50 Average Speed 97 | 144 223 240 240 221 152 154 154 154 154 81 40 39 37 36 32 25 31 29 28 26 26 32 33 33 33 35 33 92 118 Slowest Speed 280 | 160 240 240 240 280 154 154 154 154 154 232 108 40 92 36 36 32 32 32 32 26 26 94 36 116 33 108 33 260 120 Overloaded Moves 150 | . . . . . . . . . . . . . 6 . 8 10 7 5 6 . . 60 15 33 . . . . . Propulsion Burnouts . | . . . . . . . . . . . . . . . . . . . . . . . . . . . . . . Robots Hopped . | . . . . . . . . . . . . . . . . . . . . . . . . . . . . . . Potential Cave-ins 11 | . . . . . . . . . . 2 . . . . . . . . . . . 4 . 5 . . . . . Cave-ins Triggered . | . . . . . . . . . . . . . . . . . . . . . . . . . . . . . . Teleports 18 | . . . . . . . . . . . . . . . . . . . . . . . . 16 . . . 1 1 Exploration Rate (%) 64 | 3 93 90 96 93 15 97 96 73 95 27 75 70 93 84 21 85 23 79 93 63 84 51 61 46 10 65 15 87 37 Regions Visited 29 Branch Regions 20 Pre-discovered Areas 16 | . 3 . 7 . . 1 . 1 . . . . 1 . . . . . . 3 . . . . . . . . . Known Exits Taken 12 | . 1 . . . 1 . . . 1 1 . . . 1 . . 1 . . . 1 . 1 1 1 1 1 . . Unknown Exits Taken 15 | 1 . 1 1 1 . 1 1 1 . . 1 1 1 . . . . 1 1 1 . 1 . . . . . 1 . Scrap Searched 34 | . . 6 . 6 . 3 3 . 3 . 1 3 . 1 . . . 1 4 . 3 . . . . . . . . Spaces Dug 258 | . 1 . . . 4 3 . . 1 19 2 2 . . 5 . 7 . 1 . . 52 4 56 5 46 28 10 12 Terrain Destroyed 1623 | . 1 25 1 . 51 29 95 . 41 48 2 32 1 . 35 . 131 165 108 . 155 172 7 104 11 98 61 59 191 Melee 36 | . . . . . . . . . . 15 1 2 . . 5 . 7 . 1 . . . . . . 5 . . . Projectile 451 | . 1 . 1 . 5 4 2 . 5 9 1 . 1 . . . . . . . . 68 7 39 11 92 34 28 143 AOE 1058 | . . 25 . . 46 23 93 . 36 24 . 30 . . 30 . 124 165 107 . 155 104 . 65 . . . 31 . Terrain Rammed . | . . . . . . . . . . . . . . . . . . . . . . . . . . . . . . Walls Destroyed . | . . . . . . . . . . . . . . . . . . . . . . . . . . . . . . Machines Disabled . | . . . . . . . . . . . . . . . . . . . . . . . . . . . . . . Actions | -11 -10 -10 -8 -8 -6 -6 -6 -6 -5 -5 -5 -5 -5 -4 -4 -4 -4 -4 -4 -4 -3 -3 -3 -3 -2 -2 -1 -1 -1 --------- Run | Yrd Mat Sub Rec Scr Fac Low Low Dat Pro Fac Upp Upp War Pro Fac Was Fac Upp Upp Zhi Pro Res Qua Frg Res Tes Acc Com Ac0 Total 34360 | 60 840 1855 599 2950 596 1260 1327 94 717 1304 892 624 1859 784 995 74 861 812 810 180 654 2061 667 3945 172 1371 602 4534 861 Wait 3285 | . 131 106 12 45 26 25 368 . 12 24 87 8 342 22 35 . 60 101 17 9 57 118 19 317 . 442 5 882 15 Move 28072 | 49 618 1653 573 2753 461 1131 882 91 674 1108 768 602 1409 726 896 72 725 680 769 158 568 1762 595 2978 153 767 536 3365 550 Hop . | . . . . . . . . . . . . . . . . . . . . . . . . . . . . . . Pick Up 361 | 4 16 11 . 61 15 7 12 . 5 19 6 . 10 2 11 1 7 1 . 2 1 13 6 83 1 16 4 34 13 Fast Attach 162 | 6 1 1 . 5 6 4 2 1 . 6 2 1 12 . 3 . 7 . . 3 3 12 6 38 3 . 1 26 13 Attach 168 | . 3 3 . 12 8 1 1 . 1 10 1 . 2 . 6 1 11 7 5 1 4 12 3 33 3 6 3 11 20 Detach 135 | . 1 3 . 8 1 1 . . . 7 1 . 1 . 5 . 15 8 5 . 3 7 2 31 2 4 2 14 14 Swap 283 | . 8 21 3 8 12 9 18 . 8 18 6 3 16 6 11 . 5 . . . . 8 4 68 2 13 8 17 11 Drop 441 | . 1 11 3 53 12 11 17 2 5 35 5 1 22 4 19 . 10 . . 3 5 20 12 103 1 12 3 52 19 Fire 1158 | 1 59 24 8 2 51 51 27 . 12 37 10 7 40 14 2 . 8 14 13 . 13 109 20 179 7 92 40 112 206 Melee 214 | . . 22 . 3 . . . . . 40 6 2 4 9 7 . 13 1 1 4 . . . 85 . 6 . 11 . Ram . | . . . . . . . . . . . . . . . . . . . . . . . . . . . . . . Kick . | . . . . . . . . . . . . . . . . . . . . . . . . . . . . . . Crush 2 | . 2 . . . . . . . . . . . . . . . . . . . . . . . . . . . . Escape Stasis 51 | . . . . . . . . . . . . . . . . . . . . . . . . 30 . 13 . 8 . Rewire 28 | . . . . . 4 20 . . . . . . 1 1 . . . . . . . . . . . . . 2 . Trap . | . . . . . . . . . . . . . . . . . . . . . . . . . . . . . . Miscellaneous . | . . . . . . . . . . . . . . . . . . . . . . . . . . . . . . Route ------- -11/Scrapyard -10/Materials (discovered 5 exits: [*Mat x3] / *Min / *Sub) -10/Subcaves (discovered 3 exits: *Mat x2 / *Rec) -8/Recycling (discovered 2 exits: *Fac / *Scr) -8/Scraptown (discovered 2 exits: *Fac x2) -6/Factory (discovered 4 exits: Fac x3 / *Low) -6/Lower Caves -6/Lower Caves (discovered 2 exits: *Fac / *Dat) -6/Data Miner -5/Proximity Caves -5/Factory (discovered 6 exits: Fac x2 / *Upp x2 / Ext x2) -5/Upper Caves -5/Upper Caves (discovered 2 exits: *Fac / *War) -5/Warlord -4/Proximity Caves -4/Factory (discovered 6 exits: *Res x3 / Upp x2 / Arm) -4/Waste -4/Factory (discovered 3 exits: *Upp x2 / Arm) -4/Upper Caves -4/Upper Caves (discovered 2 exits: *Res / *Zhi) -4/Zhirov -3/Proximity Caves -3/Research (discovered 4 exits: Res x3 / *Qua) -3/Quarantine (discovered 2 exits: *Sec / *Frg) -3/Protoforge -2/Research (discovered 2 exits: *Tes x2) -2/Testing -1/Access -1/Command (discovered 3 exits: *Sur x2 / [*Ac0]) -1/Access_0 Near Former Tau Ceti IV History --------- Turn | Location | Event 3 | -11/Scrapyard | Discovered new exit (range 15) 88 | -11/Scrapyard | Entered Materials 332 | -10/Materials | Build established: Mutant 508 | -10/Materials | Discovered new exit (range 13) 588 | -10/Materials | Derelicts attacked the area 925 | -10/Materials | Identified exit to Mines 964 | -10/Materials | Discovered new exit (range 7) 1349 | -10/Materials | Discovered new exit (range 14) 1405 | -10/Materials | Learned location of 2 exits from Mines 1482 | -10/Materials | Learned location of Recycling (-8) 1547 | -10/Materials | Identified exit to Subcaves 1778 | -10/Materials | Learned Storage trap positions 1811 | -10/Materials | Entered Subcaves 1812 | -10/Subcaves | Identified exit to Materials 2429 | -10/Subcaves | Visited triangular shrine 2444 | -10/Subcaves | Found Prototype Device 2445 | -10/Subcaves | Identified V3-11A's Pendant 2450 | -10/Subcaves | Befriended Subdweller 2953 | -10/Subcaves | Discovered new exit (range 11) 3091 | -10/Subcaves | Approached by friendly Subdweller 3140 | -10/Subcaves | Befriended Subdweller 3195 | -10/Subcaves | Befriended Subdweller 3602 | -10/Subcaves | A swath of the cavern ceiling suddenly collapsed 3777 | -10/Subcaves | Core integrity fell below 50% 4621 | -10/Subcaves | Approached by friendly Subdweller 4670 | -10/Subcaves | Befriended Subdweller 4670 | -10/Subcaves | Befriended Subdweller 4953 | -10/Subcaves | Befriended Subdweller 5048 | -10/Subcaves | Befriended Subdweller 5048 | -10/Subcaves | Befriended Subdweller 5048 | -10/Subcaves | Befriended Subdweller 5167 | -10/Subcaves | Visited 4L-MR0's lab 5194 | -10/Subcaves | Found Cargo Legs 5249 | -10/Subcaves | Shifting Twisted Machinery released Battle Cannon 6059 | -10/Subcaves | Entered Recycling 6059 | -8/Recycling | Accompanied by 6 allies 6517 | -8/Recycling | Discovered new exit (range 16) 7051 | -8/Recycling | Learned Storage security intel 7112 | -8/Recycling | Learned Factory trap positions 7162 | -8/Recycling | Learned Factory emergency access door positions 7203 | -8/Recycling | Learned 4 Factory zone layouts 7270 | -8/Recycling | Learned location of 3 exits from Factory 7318 | -8/Recycling | Learned location of Storage (-8) 7390 | -8/Recycling | Scanned before Scraplab entrance 7424 | -8/Recycling | Entered Scraplab 7443 | -8/Recycling | Discovered new exit (range 2) 7474 | -8/Recycling | Entered Scraptown 7474 | -8/Scraptown | Accompanied by 4 allies 7813 | -8/Scraptown | Heard Great Nut preacher, LISTEN AND RECITE! 7830 | -8/Scraptown | Delivered V3-11A's Pendant to T0-NE2 in exchange for information 8161 | -8/Scraptown | Discovered new exit (range 7) 8312 | -8/Scraptown | Scanned Subdweller tech in exchange for log data 8316 | -8/Scraptown | Learned Research security intel 8319 | -8/Scraptown | Learned Research terminal intel 8407 | -8/Scraptown | Visited Junk Repository 8476 | -8/Scraptown | Visited Fellowship of the Rings 8536 | -8/Scraptown | Visited SPCMW 8646 | -8/Scraptown | Visited The Evicted 8682 | -8/Scraptown | Visited Comm Corps 8795 | -8/Scraptown | Visited UFD Registry 8795 | -8/Scraptown | Registered with UFD as "Protonsink" 8826 | -8/Scraptown | Visited CR-KLE's Repair Center 8997 | -8/Scraptown | Visited Curators Association 9100 | -8/Scraptown | Visited Science Guys 9179 | -8/Scraptown | Visited Abandonware Association 9217 | -8/Scraptown | Learned abandonware demo "HACKBUD.EXE" 9217 | -8/Scraptown | Learned abandonware demo "TRNCOAT.EXE" 9461 | -8/Scraptown | Attached CPS modules to R4-24E(R). 9530 | -8/Scraptown | Delivered Scrap Shield to a Scientist 9630 | -8/Scraptown | Visited LU-1G1's Boring Crew 9695 | -8/Scraptown | Visited Supply Room 9746 | -8/Scraptown | Visited Supply Room 9772 | -8/Scraptown | Visited DA-N13 Charitable Foundation 9782 | -8/Scraptown | Found DCF Scrap (28 items) 9870 | -8/Scraptown | Visited Derelict Rescue Squad 9906 | -8/Scraptown | Visited Junk Cannon Lab 9942 | -8/Scraptown | Visited A0-MCA Data Center 9955 | -8/Scraptown | Given a B rating by A0-MCA 9958 | -8/Scraptown | Found A0-MCA's Component Scanner 10097 | -8/Scraptown | Found DRS Beacon 10249 | -8/Scraptown | Discovered new exit (range 5) 11493 | -8/Scraptown | CR-KLE repaired 7 parts 12217 | -8/Scraptown | Found Scrap Suit 12604 | -8/Scraptown | Botcube activated 12628 | -8/Scraptown | Botcube completed mutation into legged form, armed with 2 guns. 12733 | -8/Scraptown | Attached CPS modules to Mutated Botcube. 13117 | -8/Scraptown | Build established: Derelict-Mutant 13659 | -8/Scraptown | Met Optimus 13659 | -8/Scraptown | Accepted into 0bPrime 13762 | -8/Scraptown | Entered Factory 13762 | -6/Factory | Accompanied by 3 allies 13762 | -6/Factory | Evolved 8 slots: Power x1, Propulsion x3, Utility x4 13763 | -6/Factory | Identified exit to Lower Caves 13764 | -6/Factory | Identified exit to Factory 13766 | -6/Factory | Loaded intel: 109 trap records 14313 | -6/Factory | Central database locked down 14671 | -6/Factory | Entered Lower Caves 14671 | -6/Lower Caves | Accompanied by 1 ally 14673 | -6/Lower Caves | UFD Scientist delivered a prototype 14678 | -6/Lower Caves | Found Prototype Protection 14678 | -6/Lower Caves | Identified Enh. Scrap Shield 14822 | -6/Lower Caves | Learned 4 Factory zone layouts 14838 | -6/Lower Caves | Found Alien Artifact 14838 | -6/Lower Caves | Identified Core Expander 14838 | -6/Lower Caves | Installed Core Expander, added new Utility slot 14860 | -6/Lower Caves | Attached CPS modules to C-55 Analyst. 14863 | -6/Lower Caves | Attached CPS modules to C-55 Analyst. 14904 | -6/Lower Caves | Build established: Scavenger-Mutant 15137 | -6/Lower Caves | Learned location of 1 exit from Factory 15475 | -6/Lower Caves | Attracted the attention of an 0b10 checkpoint 15854 | -6/Lower Caves | Attacked by a delusional Derelict stockpiling Unaware 16297 | -6/Lower Caves | Discovered new exit (range 6) 16380 | -6/Lower Caves | Ambushed by wild Derelicts 16447 | -6/Lower Caves | Lost 4 allies 16613 | -6/Lower Caves | Entered another Lower Caves area 16613 | -6/Lower Caves | Accompanied by 1 ally 16669 | -6/Lower Caves | Discovered exit to Factory (range 18) 16705 | -6/Lower Caves | Prototype Device suddenly appears! 16710 | -6/Lower Caves | Found Prototype Device 16713 | -6/Lower Caves | Identified Amulet of Y3-NDR 16805 | -6/Lower Caves | Joined by bewildered Wizard 16805 | -6/Lower Caves | Joined by bewildered Wizard 16825 | -6/Lower Caves | Joined by bewildered Wizard 16826 | -6/Lower Caves | Joined by bewildered Wizard 16864 | -6/Lower Caves | Joined by bewildered Wizard 16865 | -6/Lower Caves | Joined by bewildered Wizard 16894 | -6/Lower Caves | Lost 3 allies 16957 | -6/Lower Caves | Lost 3 allies 17162 | -6/Lower Caves | Attracted the attention of an 0b10 checkpoint 17657 | -6/Lower Caves | Spotted B-75 Beast 17684 | -6/Lower Caves | Destroyed B-75 Beast 18236 | -6/Lower Caves | Discovered new exit (range 9) 18314 | -6/Lower Caves | Found DCF Scrap (15 items) 18451 | -6/Lower Caves | Entered Data Miner 18451 | -6/Data Miner | Accompanied by 1 ally 18453 | -6/Data Miner | Discovered new exit (range 7) 18473 | -6/Data Miner | Met Data Miner 18508 | -6/Data Miner | Learned location of Section 7 (-3) 18508 | -6/Data Miner | Acquired the access code to Warlord's prototype stash 18536 | -6/Data Miner | Received God Mode back door access code from Data Miner 18594 | -6/Data Miner | Entered Proximity Caves 18594 | -5/Proximity Caves | Accompanied by 1 ally 18596 | -5/Proximity Caves | Spotter reported a threat 18633 | -5/Proximity Caves | Joined by bewildered Wizard 18636 | -5/Proximity Caves | Joined by bewildered Wizard 18740 | -5/Proximity Caves | Joined by bewildered Wizard 18741 | -5/Proximity Caves | Joined by bewildered Wizard 18819 | -5/Proximity Caves | Spotter reported a threat 18880 | -5/Proximity Caves | Lost 3 allies 18884 | -5/Proximity Caves | Joined by bewildered Wizard 18885 | -5/Proximity Caves | Joined by bewildered Wizard 19066 | -5/Proximity Caves | Learned Factory stockpile data 19183 | -5/Proximity Caves | Attracted the attention of an 0b10 checkpoint 19556 | -5/Proximity Caves | Discovered exit to Factory (range 8) 19691 | -5/Proximity Caves | Entered Factory 19691 | -5/Factory | Accompanied by 2 allies 19691 | -5/Factory | Evolved 2 slots: Propulsion x1, Utility x1 19692 | -5/Factory | Identified exit to Factory 19924 | -5/Factory | Joined by bewildered Wizard 19925 | -5/Factory | Joined by bewildered Wizard 19926 | -5/Factory | Joined by bewildered Wizard 19950 | -5/Factory | Discovered new exit (range 21) 20012 | -5/Factory | Joined by bewildered Wizard 20032 | -5/Factory | Garrison activated, responded to threat 20141 | -5/Factory | Joined by bewildered Wizard 20142 | -5/Factory | Joined by bewildered Wizard 20159 | -5/Factory | Joined by bewildered Wizard 20165 | -5/Factory | Lost 3 allies 20324 | -5/Factory | Joined by bewildered Wizard 20370 | -5/Factory | Joined by bewildered Wizard 20371 | -5/Factory | Joined by bewildered Wizard 20443 | -5/Factory | Identified exit to Upper Caves 20443 | -5/Factory | Identified exit to Extension 20876 | -5/Factory | Entered Upper Caves 20877 | -5/Upper Caves | Encountered a Warlord checkpoint 20879 | -5/Upper Caves | Spotted B-75 Beast 20956 | -5/Upper Caves | Learned Factory trap positions 20967 | -5/Upper Caves | Joined by bewildered Wizard 20967 | -5/Upper Caves | Joined by bewildered Wizard 20998 | -5/Upper Caves | Joined by bewildered Wizard 20999 | -5/Upper Caves | Joined by bewildered Wizard 21042 | -5/Upper Caves | Learned location of 1 exit from Factory 21145 | -5/Upper Caves | Joined by bewildered Wizard 21246 | -5/Upper Caves | Joined by bewildered Wizard 21246 | -5/Upper Caves | Joined by bewildered Wizard 21262 | -5/Upper Caves | Discovered new exit (range 6) 21330 | -5/Upper Caves | Entered another Upper Caves area 21330 | -5/Upper Caves | Accompanied by 4 allies 21339 | -5/Upper Caves | Discovered exit to Factory (range 13) 21487 | -5/Upper Caves | Discovered new exit (range 12) 21552 | -5/Upper Caves | Joined by bewildered Wizard 21599 | -5/Upper Caves | Entered Warlord 21599 | -5/Warlord | Accompanied by 4 allies 21613 | -5/Warlord | System corruption cleaned by Quarantine Array 21727 | -5/Warlord | Opened Warlord's prototype stash 21729 | -5/Warlord | Found Prototype Reactor 21729 | -5/Warlord | Identified Vortex Chain Reactor 21743 | -5/Warlord | Found Prototype Device 21743 | -5/Warlord | Identified Thermal Barrier 21746 | -5/Warlord | Found Prototype Processor 21746 | -5/Warlord | Identified Spectral Analyzer 21784 | -5/Warlord | Learned 4 Quarantine zone layouts 21785 | -5/Warlord | Learned Quarantine security intel 21811 | -5/Warlord | Warlord's base attacked by MAIN.C 21898 | -5/Warlord | Found Prototype Energy Gun 21898 | -5/Warlord | Identified Vortex Shotgun 21900 | -5/Warlord | Found Prototype Energy Cannon 21900 | -5/Warlord | Identified Vortex Cannon 21903 | -5/Warlord | Found Prototype Energy Gun 21903 | -5/Warlord | Identified Vortex Rifle 21908 | -5/Warlord | Found Vortex Shotgun 21929 | -5/Warlord | Rebuked by Warlord 22102 | -5/Warlord | Lost 4 allies 22102 | -5/Warlord | Spotted B-86 Titan 22161 | -5/Warlord | Warlord forces counterattacked 22186 | -5/Warlord | Spotted B-75 Beast 22193 | -5/Warlord | Spotted Striker 22241 | -5/Warlord | Lost 6 allies 22277 | -5/Warlord | Spotted Executioner 22342 | -5/Warlord | Spotted Executioner 22344 | -5/Warlord | Spotted Striker 22344 | -5/Warlord | P-80 Master assimilated allied MZ-FOA(b) 22377 | -5/Warlord | P-70 Sage assimilated allied G1-EGU(M) 22413 | -5/Warlord | Lost 20 allies 22448 | -5/Warlord | Spotted Striker 22486 | -5/Warlord | Warlord base infiltrated, sounded retreat 22512 | -5/Warlord | Attached CPS modules to Enhanced Demolisher. 22560 | -5/Warlord | Spotted Striker 22570 | -5/Warlord | Discovered new exit (range 23) 22602 | -5/Warlord | Attacked by Warlord forces 22610 | -5/Warlord | Entered Proximity Caves 22613 | -4/Proximity Caves | Spotter reported a threat 22631 | -4/Proximity Caves | Joined by bewildered Wizard 22632 | -4/Proximity Caves | Joined by bewildered Wizard 22634 | -4/Proximity Caves | Joined by bewildered Wizard 22647 | -4/Proximity Caves | Joined by bewildered Wizard 22721 | -4/Proximity Caves | Attracted the attention of an 0b10 outpost 22766 | -4/Proximity Caves | Joined by bewildered Wizard 22767 | -4/Proximity Caves | Joined by bewildered Wizard 22773 | -4/Proximity Caves | Lost 4 allies 22804 | -4/Proximity Caves | Learned Research security intel 22898 | -4/Proximity Caves | Discovered exit to Factory (range 4) 22953 | -4/Proximity Caves | Entered Factory 22953 | -4/Factory | Accompanied by 2 allies 22953 | -4/Factory | Evolved 2 slots: Propulsion x1, Utility x1 22954 | -4/Factory | Identified exit to Research 22956 | -4/Factory | Loaded intel: 83 trap records 22995 | -4/Factory | Joined by bewildered Wizard 22996 | -4/Factory | Joined by bewildered Wizard 23083 | -4/Factory | Identified exit to Upper Caves 23083 | -4/Factory | Identified exit to Armory 23085 | -4/Factory | Spotted B-86 Titan 23194 | -4/Factory | Joined by bewildered Wizard 23194 | -4/Factory | Joined by bewildered Wizard 23194 | -4/Factory | Joined by bewildered Wizard 23195 | -4/Factory | Joined by bewildered Wizard 23210 | -4/Factory | Joined by bewildered Wizard 23210 | -4/Factory | Joined by bewildered Wizard 23230 | -4/Factory | Fabricated Antigrav Array? 23240 | -4/Factory | Joined by bewildered Wizard 23263 | -4/Factory | Discovered exit to Research (range 6) 23267 | -4/Factory | Joined by bewildered Wizard 23313 | -4/Factory | Adv. Hacking Suite fried by hacking feedback 23345 | -4/Factory | Sucked down chute 23345 | -4/Factory | Entered Waste 23353 | -4/Waste | Spotted C-40 Crusher 23355 | -4/Waste | Spotted C-40 Crusher 23357 | -4/Waste | Spotted C-40 Crusher 23358 | -4/Waste | Spotted C-40 Crusher 23360 | -4/Waste | EMP discharged 23360 | -4/Waste | Discovered new exit (range 22) 23362 | -4/Waste | Spotted C-40 Crusher 23362 | -4/Waste | Spotted C-40 Crusher 23366 | -4/Waste | Entered Factory 23430 | -4/Factory | Joined by bewildered Wizard 23442 | -4/Factory | Joined by bewildered Wizard 23461 | -4/Factory | Joined by bewildered Wizard 23512 | -4/Factory | Joined by bewildered Wizard 23512 | -4/Factory | Joined by bewildered Wizard 23512 | -4/Factory | Joined by bewildered Wizard 23546 | -4/Factory | Joined by bewildered Wizard 23571 | -4/Factory | Destroyed 7 combat bots 23579 | -4/Factory | Garrison activated, responded to threat 23604 | -4/Factory | Build established: Hacker-Sprinter 23616 | -4/Factory | First assault squad dispatched 23639 | -4/Factory | Joined by bewildered Wizard 23639 | -4/Factory | Joined by bewildered Wizard 23746 | -4/Factory | Entered Upper Caves 23746 | -4/Upper Caves | Accompanied by 1 ally 23758 | -4/Upper Caves | Joined by bewildered Wizard 23759 | -4/Upper Caves | Joined by bewildered Wizard 23759 | -4/Upper Caves | Joined by bewildered Wizard 23871 | -4/Upper Caves | Joined by bewildered Wizard 23961 | -4/Upper Caves | Joined by bewildered Wizard 23961 | -4/Upper Caves | Joined by bewildered Wizard 23970 | -4/Upper Caves | Destroyed 7 combat bots 23977 | -4/Upper Caves | Lost 3 allies 23991 | -4/Upper Caves | Build established: Sprinter 24015 | -4/Upper Caves | Joined by bewildered Wizard 24043 | -4/Upper Caves | Encountered a Warlord checkpoint 24061 | -4/Upper Caves | Discovered new exit (range 12) 24088 | -4/Upper Caves | Entered another Upper Caves area 24088 | -4/Upper Caves | Accompanied by 4 allies 24109 | -4/Upper Caves | Spotted B-86 Titan 24110 | -4/Upper Caves | Learned Research stockpile data 24133 | -4/Upper Caves | Encountered a Warlord checkpoint 24134 | -4/Upper Caves | Joined by bewildered Wizard 24155 | -4/Upper Caves | Discovered exit to Research (range 12) 24196 | -4/Upper Caves | Learned Research trap positions 24270 | -4/Upper Caves | Destroyed 7 combat bots 24317 | -4/Upper Caves | Discovered new exit (range 5) 24360 | -4/Upper Caves | Entered Zhirov 24360 | -4/Zhirov | Accompanied by 4 allies 24360 | -4/Zhirov | Discovered new exit (range 4) 24365 | -4/Zhirov | Met Zhirov 24371 | -4/Zhirov | Found Alien Artifact 24371 | -4/Zhirov | Identified Integrated Dissipator 24371 | -4/Zhirov | Installed Integrated Dissipator, increased core heat dissipation (+20) 24379 | -4/Zhirov | Found Alien Artifact 24406 | -4/Zhirov | Learned location of Command (-1) 24410 | -4/Zhirov | Zhirov requested help retrieving the SGEMP Prototype 24427 | -4/Zhirov | Entered Proximity Caves 24427 | -3/Proximity Caves | Accompanied by 4 allies 24554 | -3/Proximity Caves | Attracted the attention of an 0b10 checkpoint 24574 | -3/Proximity Caves | Joined by bewildered Wizard 24575 | -3/Proximity Caves | Joined by bewildered Wizard 24651 | -3/Proximity Caves | Discovered exit to Research (range 5) 24673 | -3/Proximity Caves | Entered Research 24673 | -3/Research | Accompanied by 4 allies 24673 | -3/Research | Evolved 2 slots: Utility x2 24674 | -3/Research | Loaded intel: 101 trap records 24677 | -3/Research | Loaded intel: 23 terminal locations 24691 | -3/Research | Spotted B-86 Titan 24775 | -3/Research | Found Faulty Exp. Melee Analysis Suite 24778 | -3/Research | Found Exp. Melee Analysis Suite 24856 | -3/Research | Joined by bewildered Wizard 24900 | -3/Research | Joined by bewildered Wizard 24937 | -3/Research | Joined by bewildered Wizard 24947 | -3/Research | Joined by bewildered Wizard 25034 | -3/Research | Loaded intel: 5 recycling unit locations 25173 | -3/Research | First assault squad dispatched 25272 | -3/Research | Build established: Hacker-Sprinter 25398 | -3/Research | Scrapoids reinforcements arrived? 25450 | -3/Research | Lost 4 allies 25653 | -3/Research | Identified exit to Research 25655 | -3/Research | Discovered new exit (range 5) 25660 | -3/Research | Entered Quarantine 25661 | -3/Quarantine | Identified exit to Section 7 25661 | -3/Quarantine | Identified exit to Protoforge 25771 | -3/Quarantine | Found Alien Artifact 25791 | -3/Quarantine | Cryocooling Duct disabled 25806 | -3/Quarantine | Ambient heat levels rising (+20) 25806 | -3/Quarantine | Non-combat units ordered to evacuate 25870 | -3/Quarantine | Found Alien Artifact 25872 | -3/Quarantine | Identified Core Reset Matrix 25872 | -3/Quarantine | Identified Subatomic Replicator 25872 | -3/Quarantine | Identified Transdimensional Reconstructor 25872 | -3/Quarantine | Used Core Reset Matrix 25876 | -3/Quarantine | Detected hypermatrix surge 25876 | -3/Quarantine | Sensed 2 artifacts in vicinity 25923 | -3/Quarantine | Spotted Fortress 25948 | -3/Quarantine | Discovered exit to Section 7 (range 6) 25948 | -3/Quarantine | Discovered exit to Protoforge (range 6) 25950 | -3/Quarantine | Entered Protoforge 25950 | -3/Protoforge | Spotted B-86 Titan 25951 | -3/Protoforge | Sensed 2 artifacts in vicinity 25977 | -3/Protoforge | Central database locked down 26032 | -3/Protoforge | Spotted Hotshot 26032 | -3/Protoforge | Spotted Hotshot 26032 | -3/Protoforge | Spotted Hotshot 26066 | -3/Protoforge | Build established: Hacker-Mutant 26208 | -3/Protoforge | Found Cep. Weapon Articulator 26218 | -3/Protoforge | Found Exp. Terror Saw 26221 | -3/Protoforge | Found Exp. Terror Saw 26229 | -3/Protoforge | Found Cep. Core Shell 26250 | -3/Protoforge | Found Cep. Antimissile System 26366 | -3/Protoforge | Superfortress began startup sequence 26399 | -3/Protoforge | Spotted Immortal 26399 | -3/Protoforge | Spotted Immortal 26408 | -3/Protoforge | Destroyed Decapitator 26408 | -3/Protoforge | Destroyed Decapitator 26410 | -3/Protoforge | Spotted Decapitator 26410 | -3/Protoforge | Spotted Decapitator 26411 | -3/Protoforge | Destroyed Decapitator 26411 | -3/Protoforge | Destroyed Decapitator 26446 | -3/Protoforge | Destroyed Immortal 26450 | -3/Protoforge | Spotted Immortal 26466 | -3/Protoforge | Destroyed Immortal 26473 | -3/Protoforge | Spotted Immortal 26500 | -3/Protoforge | Destroyed Immortal 26509 | -3/Protoforge | Destroyed Immortal 26516 | -3/Protoforge | Found Corrupted Exp. Jetlance 26535 | -3/Protoforge | Found Cep. Antigrav Storage Unit 26538 | -3/Protoforge | Found Cep. Chromion Battery 26539 | -3/Protoforge | Found Cep. NT7 Matterbank 26543 | -3/Protoforge | Found Cep. Chromion Battery 26545 | -3/Protoforge | Found Cep. Matter Streamer 26621 | -3/Protoforge | Found Faulty Cep. Zero-point Core 26626 | -3/Protoforge | Found Faulty Cep. Zero-point Core 26631 | -3/Protoforge | Spotted V535-y 26651 | -3/Protoforge | Destroyed V535-y 26661 | -3/Protoforge | Found Med. Regenerative Plating 26668 | -3/Protoforge | Found Exp. Core Analyzer 26700 | -3/Protoforge | First assault squad dispatched 26707 | -3/Protoforge | Found Adv. Powered Armor 26709 | -3/Protoforge | Found Cep. Countertargeting System 26719 | -3/Protoforge | Incoming assault squad redirected 26730 | -3/Protoforge | Found Faulty Cep. Zero-point Core 26759 | -3/Protoforge | Forge Plexus network access discovered 26805 | -3/Protoforge | Found Crosscalibrator 26975 | -3/Protoforge | Incoming assault squad redirected 27049 | -3/Protoforge | Spotted Decapitator 27049 | -3/Protoforge | Spotted Decapitator 27049 | -3/Protoforge | Spotted Decapitator 27049 | -3/Protoforge | Spotted Decapitator 27049 | -3/Protoforge | Spotted Hotshot 27055 | -3/Protoforge | Spotted Hotshot 27112 | -3/Protoforge | Build established: Scavenger-Sprinter 27139 | -3/Protoforge | Found Cep. Core Shell 27149 | -3/Protoforge | Found Exp. Force Field 27151 | -3/Protoforge | Found Cep. Core Shell 27274 | -3/Protoforge | Destroyed Decapitator 27276 | -3/Protoforge | Destroyed Decapitator 27283 | -3/Protoforge | Destroyed Decapitator 27287 | -3/Protoforge | Destroyed Decapitator 27290 | -3/Protoforge | Found Exp. Terror Saw 27304 | -3/Protoforge | System corruption reached 10% 27420 | -3/Protoforge | Destroyed 8 combat bots 27440 | -3/Protoforge | Found Cep. Disintegration Ray 27443 | -3/Protoforge | Found Cep. Plasma Driver 27444 | -3/Protoforge | Found Cep. Plasma Driver 27448 | -3/Protoforge | Found Faulty Cep. Lightning Penetrator 27455 | -3/Protoforge | Found Faulty Cep. Helical Railcannon 27457 | -3/Protoforge | Found Exp. Jetlance 27460 | -3/Protoforge | Found Cep. Deflector Sword 27464 | -3/Protoforge | Found Cep. Lightning Penetrator 27470 | -3/Protoforge | Found Cep. Helical Railcannon 27475 | -3/Protoforge | Found Faulty Cep. Plasma Driver 27478 | -3/Protoforge | Found Exp. Jetlance 27489 | -3/Protoforge | Found Cep. Heavy Railcannon 27503 | -3/Protoforge | Found Faulty Cep. Heavy Railcannon 27505 | -3/Protoforge | Found Faulty Cep. Helical Railcannon 27591 | -3/Protoforge | Spotted Immortal 27591 | -3/Protoforge | Spotted Immortal 27637 | -3/Protoforge | Destroyed Immortal 27637 | -3/Protoforge | Destroyed Immortal 27663 | -3/Protoforge | Found Faulty Cep. Melee Reflex Suite 27665 | -3/Protoforge | Found Cep. Melee Reflex Suite 27667 | -3/Protoforge | Spotted V948-t 27680 | -3/Protoforge | Found Exp. Kinecellerator 27718 | -3/Protoforge | Spotted AP7-3 27725 | -3/Protoforge | Destroyed AP7-3 27725 | -3/Protoforge | Spotted AP7-3 27732 | -3/Protoforge | Destroyed AP7-3 27736 | -3/Protoforge | Build established: Alien-Sprinter 27749 | -3/Protoforge | Found Cep. Core Analysis Suite 27753 | -3/Protoforge | Found Cep. Core Analysis Suite 27757 | -3/Protoforge | Found Cep. Thermoelectric Network 27760 | -3/Protoforge | Found Cep. Cloak Mesh 27768 | -3/Protoforge | Used Subatomic Replicator to replicate Faulty Cep. Dimensional Manipulator 27771 | -3/Protoforge | Found Faulty Cep. Dimensional Manipulator 27829 | -3/Protoforge | Additional patrols dispatched to research labs 27841 | -3/Protoforge | Found Cep. Nanofilaments [Conductive] 27841 | -3/Protoforge | Installed Cep. Nanofilaments [Conductive], 2 resistances modified: TH -15%, EM +25% 27848 | -3/Protoforge | Found Cep. Navigation Harness 27945 | -3/Protoforge | Spotted V463-h 27945 | -3/Protoforge | Spotted V219-n 27951 | -3/Protoforge | Scanned by Researcher 27959 | -3/Protoforge | Found Exp. Active Sensor Suite 27962 | -3/Protoforge | Found Cep. Network Penetrator 27972 | -3/Protoforge | Destroyed V219-n 27994 | -3/Protoforge | Spotted V123-s 27994 | -3/Protoforge | Spotted V150-l 28029 | -3/Protoforge | Spotted V526-w 28034 | -3/Protoforge | Found Cep. Network Penetrator 28068 | -3/Protoforge | Found Cep. NT7 Matterbank 28080 | -3/Protoforge | Found Cep. Matter Streamer 28083 | -3/Protoforge | Found Cep. Antigrav Storage Unit 28211 | -3/Protoforge | Entered Research 28211 | -2/Research | Evolved 2 slots: Power x1, Utility x1 28222 | -2/Research | Identified exit to Testing 28253 | -2/Research | Spotted B-90 Cyclops 28286 | -2/Research | Found Quantum Capacitor 28291 | -2/Research | Entered Testing 28331 | -2/Testing | Found Femtoactuators 28373 | -2/Testing | Unchained authorized (V4-D3R) 28725 | -2/Testing | Build established: Wizard-Scout 28814 | -2/Testing | Destroyed V4-D3R 28818 | -2/Testing | Found V4-D3R's Forcewell 28820 | -2/Testing | Found V4-D3R's Forcegen 28822 | -2/Testing | Found V4-D3R's Sabre 28909 | -2/Testing | Destroyed 15 combat bots 28926 | -2/Testing | Found Med. Regenerative Plating 28962 | -2/Testing | Identified exit to Access 28974 | -2/Testing | Found Ragnarok Missile Launcher 29044 | -2/Testing | Found SHELL Armor 29190 | -2/Testing | Entered Access 29190 | -1/Access | Evolved 2 slots: Utility x2 29440 | -1/Access | First assault squad dispatched 29448 | -1/Access | Discovered new exit (range 7) 29450 | -1/Access | Identified exit to Command 29450 | -1/Access | Entered Command 29454 | -1/Command | Identified exit to Surface 29485 | -1/Command | Disengaged cave seal 29485 | -1/Command | Assembled emerged from the dark tunnel 29542 | -1/Command | Destroyed 9 combat bots 29566 | -1/Command | Destroyed M Guard 29576 | -1/Command | Spotted Combat Programmer 29576 | -1/Command | Destroyed Combat Programmer 29578 | -1/Command | Destroyed Combat Programmer 29593 | -1/Command | Destroyed M Guard 29593 | -1/Command | All MAIN.C guards destroyed 29602 | -1/Command | Found Prototype Device 29602 | -1/Command | Identified AEGIS Remote Shield 29621 | -1/Command | Lost 4 allies 29668 | -1/Command | Met MAIN.C 29677 | -1/Command | Destroyed MAIN.C Shell 29677 | -1/Command | 0b10 Conduit disabled 29678 | -1/Command | MAIN.C activated Command garrisons 29700 | -1/Command | Destroyed MAIN.C 29705 | -1/Command | Discovered exit to Surface (range 35) 29705 | -1/Command | Discovered exit to Surface (range 88) 29705 | -1/Command | Extracted map data and part IDs from MAIN.C's data core 29747 | -1/Command | Found Hvy. Regenerative Plating 29749 | -1/Command | Found Exp. System Purifier 29858 | -1/Command | Build established: Alien-Sprinter 30578 | -1/Command | Found Zero-point Reactor 30658 | -1/Command | Found Vortex Chain Reactor 30661 | -1/Command | Found Perforator 31157 | -1/Command | Build established: Alien-Mutant 33325 | -1/Command | Found Exp. Focal Shield 33591 | -1/Command | Found Quantum Capacitor 33786 | -1/Command | Warped through subspace to slip node 33786 | -1/Command | Discovered new exit (range 4) 33792 | -1/Command | Entered Access_0 33793 | -1/Access_0 | Sensed 2 artifacts in vicinity 33793 | -1/Access_0 | Met Architect 33797 | -1/Access_0 | Architect warped through subspace 33805 | -1/Access_0 | Destroyed A8 33850 | -1/Access_0 | Architect warped through subspace 33890 | -1/Access_0 | Architect warped through subspace 33900 | -1/Access_0 | Subspace Access Node disabled 33923 | -1/Access_0 | Subspace Access Node disabled 33934 | -1/Access_0 | Architect warped through subspace 33979 | -1/Access_0 | Architect warped through subspace 33996 | -1/Access_0 | Found Exp. Phase Shifter 34000 | -1/Access_0 | Found Exp. Phase Shifter 34013 | -1/Access_0 | Architect warped through subspace 34043 | -1/Access_0 | Architect warped through subspace 34092 | -1/Access_0 | Architect warped through subspace 34115 | -1/Access_0 | Architect warped through subspace 34134 | -1/Access_0 | Architect warped through subspace 34165 | -1/Access_0 | Architect warped through subspace 34185 | -1/Access_0 | Architect warped through subspace 34201 | -1/Access_0 | Architect warped through subspace 34233 | -1/Access_0 | Architect warped through subspace 34236 | -1/Access_0 | A6 warped into view 34246 | -1/Access_0 | Destroyed A6 34277 | -1/Access_0 | Subspace Access Node disabled 34286 | -1/Access_0 | Architect warped through subspace 34321 | -1/Access_0 | Architect warped through subspace 34363 | -1/Access_0 | Architect warped through subspace 34399 | -1/Access_0 | Architect warped through subspace 34444 | -1/Access_0 | Architect warped through subspace 34466 | -1/Access_0 | Architect warped through subspace 34488 | -1/Access_0 | Architect warped through subspace 34507 | -1/Access_0 | Architect warped through subspace 34526 | -1/Access_0 | Architect warped through subspace 34571 | -1/Access_0 | Architect warped through subspace 34604 | -1/Access_0 | Architect warped through subspace 34632 | -1/Access_0 | Architect warped through subspace 34657 | -1/Access_0 | Architect warped through subspace 34674 | -1/Access_0 | Architect warped through subspace 34691 | -1/Access_0 | Architect warped through subspace 34713 | -1/Access_0 | Architect warped through subspace 34727 | -1/Access_0 | Architect warped through subspace 34727 | -1/Access_0 | Subspace Access Node disabled 34729 | -1/Access_0 | A5 warped into view 34737 | -1/Access_0 | Destroyed A5 34789 | -1/Access_0 | Destroyed Architect 34790 | -1/Access_0 | Architect triggered a singularity event 34790 | -1/Access_0 | Released all parts (22) 34790 | -1/Access_0 | Extracted unknown sensor trigger ID from Architect's data core 34791 | -1/Access_0 | Found Hpw. Transdimensional Reconstructor 34791 | -1/Access_0 | Warped through subspace to slip node 34791 | -1/Access_0 | Discovered exit to Surface (range 8) 34796 | *** | Escaped singularity! Last Messages --------------- 34790_ Released SHELL Armor. 34790_ Released Imp. Thunder Leg. 34790_ Released Hds. Centrium Leg. 34790_ Released Exp. Reaction Control System. 34790_ Released Imp. Utility Shielding. 34790_ Released Cep. Weapon Articulator. 34790_ Released AEGIS Remote Shield. 34790_ Released Hvy. Shield Leg. 34790_ Released Graviton Cannon. 34790_ Acquired data core, extracted unknown sensor trigger ID. 34791_ A0_COM: 10. 34791_ Acquired Hpw. Transdimensional Reconstructor. 34791_ Warped through subspace, drawn to slip node. 34791_ EXIT=FOUND: SURFACE 34792_ A0_COM: 9. 34793_ A0_COM: 8. 34794_ A0_COM: 7. 34795_ A0_COM: 6. 34796_ A0_COM: 5. [Achievement: Planet Killer] Map ----- +----------------------------------------------------+ | | | | | | | | | | | | | | | | | | | | | | | | | | | | | | | | | ?????????????????????????????????????????????????? | | ?????????????????????????????????????????????????? | | ?????????????????????????????????????????????????? | | ?????????????????????????????????????????????????? | | ?????????????????????????????????????????????????? | | ?????????????????????????????????????????????????? | | ????????????????????????###??????????????????????? | | ???????????????????????## ##?????????????????????? | | ???????????????????????# #?????????????????????? | | ???????????????????????# @ #?????????????????????? | | ??????????????????????## #?????????????????????? | | ??????????????????????# #?????????????????????? | | ??????????????????????# ##?????????????????????? | | ??????????????????????## #?????????????????????? | | ??????????????????????# #?????????????????????? | | ??????????????????????# ##?????????????????????? | | ??????????????????????# < #?????????????????????? | | ??????????????????????# ##?????????????????????? | | ??????????????????????## #??????????????????????? | | ???????????????????????####??????????????????????? | | ?????????????????????????????????????????????????? | | ?????????????????????????????????????????????????? | | ?????????????????????????????????????????????????? | | ?????????????????????????????????????????????????? | | ?????????????????????????????????????????????????? | | ?????????????????????????????????????????????????? | | ?????????????????????????????????????????????????? | | ?????????????????????????????????????????????????? | | ?????????????????????????????????????????????????? | | ?????????????????????????????????????????????????? | | ?????????????????????????????????????????????????? | | ?????????????????????????????????????????????????? | | ?????????????????????????????????????????????????? | | ?????????????????????????????????????????????????? | +----------------------------------------------------+ Best States ------------- Heat Dissipation 139 Energy Generation 89 Energy Capacity 1400 Matter Stores 767 Matter Capacity 1050 Sight Range 24 Robot Scan Range 20 Terrain Scan Density 10 Jamming Range 14 Cloak Strength 6 Additional Mass Support 30 Armor Coverage 1800 Resistance: EM 25 Core Shielding 90 Propulsion Shielding 90 Utility Shielding 66 Point Defense Rating 480 Projectile Deflection 50 Weapon Cycling 20 Melee Speed Boost 30 Phase Shifting 20 Evasion (%) 104 Targeting Accuracy 30 Core Analysis 16 Recoil Reduction 6 Kinecelleration 66 Offensive Hacking 100 Defensive Hacking 14 Authchip Count 1 Item Schematics ----------------- Diametric Drive | -3/Protoforge | Archive Molecular Scythe | -3/Protoforge | Archive Com. Particle Reactor | -3/Protoforge | Archive Triangulator | -2/Testing | Hacked Plasma Lance | -2/Testing | Archive Exp. Myomer Leg | -2/Testing | Archive Thermal Barrier | -2/Testing | Archive Robot Schematics ------------------ None Fabricated ------------ Antigrav Array | x1 | -4/Factory | Preloaded Repaired ---------- Nothing Studied --------- Com. HERF Cannon | -3/Protoforge | Hacked Antigrav Array | -3/Protoforge | Hacked Alien Tech Used ----------------- Core Expander Integrated Dissipator Core Reset Matrix Subatomic Replicator Concept Nanofilaments [Conductive] Transdimensional Reconstructor High-powered Transdimensional Reconstructor Achievements -------------- Bigger And Badder Frankenstein I'm Outta Here, Maybe Loot Taster Maximum Efficiency My Bad Not Immortal After All Planet Killer Please No, Not That Rodney's Helpers Some Acronyms Are Better Than Others Thread The Needle Around The Corner l33t h4x0r Challenges ------------ None Game ------ Seed InertialSchematicPod Manual? 0 Play Time 10:08:09 Cumulative 293.3 hours Start 2026.02.07 @ 11:15:27 End 2026.02.08 @ 12:45:09 Sessions 3 Manual Loads 0 Difficulty Rogue Special Mode None Game No. 118 Rogue 118 Adventurer 0 Explorer 0 Win Type 6 Total 29 Types 10/4/6/2/1/0/1/2/1/2 Lore% 81 Gallery% 78 Achievement% 67 Wizard Run 0 Options --------- Layout 0 ASCII 0 Keyboard 1 Movement Vi Keybinds 0 Fullscreen 2 Font 18/SmallcapsGlow Map View 76x50 Zoom Use 0% Tactical HUD 1 Map Filters NONE Filters NONE Steam 1 RUN: 2774efff-9856-41fa-8e59-e9288e1c6ba2